{"text_format":"1","workbook":"xlsx","n_sheets":1,"sheets":["ADA CONSTRUCTION MAY 2024 CAA"],"not_rendered":{"charts":0,"images":0,"macros":1,"external_links":1,"defined_names":0,"comments":1,"pivot_tables":0},"unopened":[],"bounds":{"document_bytes":16777216,"sheet_cells":100000,"rows_first":2000,"rows_last":500,"rows_between":2000,"halvings":0,"cell_chars":16384,"cell_head_chars":4096},"cells_cut":0,"cells_raw":0,"read":"whole","date_system":"1900"}

{"sheet":"ADA CONSTRUCTION MAY 2024 CAA","index":0,"n_rows":277,"n_cols":11,"rows_kept":277,"cut":false,"hidden":false,"merged":[]}
["DEPARTMENT OF TRANSPORTATION - CALTRANS"]
["DBE Commitment at Award (CAA) on Federally Funded Major Construction Contracts - October 1, 2023 - May 31, 2024"]
[]
["Total Award Amount Year-to-Date (YTD)",null,"Total DBE Commitment Amount YTD",null,null,"Total Prime Contracts Awarded YTD"]
[1840322673.5,null,{"$f":"SUM(C7:C18)","v":415454616.38999999},null,null,{"$f":"SUM(D254:D274,J254:J274,G254:G274)","v":103}]
["Groups",null,"Commitment Dollars YTD","Firms YTD","Contracts YTD","% of Contracts","% of DBE $","% of Total $"]
["Hispanic American Male",null,{"$f":"SUMIF(D30:D114,\"m\", C30:C114)","v":135407152.77999997},{"$f":"COUNTIF(D30:D114,\"M\")","v":66},{"$f":"SUMIF(D30:D114,\"M\",E30:E114)","v":208},{"$f":"E7/E20","v":0.28222523744911804},{"$f":"C7/C5","v":0.32592525738813583},{"$f":"C7/A5","v":7.3577940830602914E-2}]
["Hispanic American Female",null,{"$f":"SUMIF(D30:D114,\"F\", C30:C114)","v":53654956.740000002},{"$f":"COUNTIF(D30:D114,\"F\")","v":18},{"$f":"SUMIF(D30:D114,\"F\",E30:E114)","v":110},{"$f":"E8/E20","v":0.14925373134328357},{"$f":"C8/C5","v":0.12914757622919865},{"$f":"C8/A5","v":2.9155189746131224E-2}]
["African American Male",null,{"$f":"SUMIF(D132:D145,\"m\", C132:C145)","v":11448408.859999999},{"$f":"COUNTIF(D132:D145,\"M\")","v":10},{"$f":"SUMIF(D132:D145,\"M\",E132:E145)","v":27},{"$f":"E9/E20","v":3.6635006784260515E-2},{"$f":"C9/C5","v":2.755634047222387E-2},{"$f":"C9/A5","v":6.2208704075937685E-3}]
["African American Female",null,{"$f":"SUMIF(D132:D145,\"F\", C132:C145)","v":9768178.620000001},{"$f":"COUNTIF(D132:D145,\"F\")","v":3},{"$f":"SUMIF(D132:D145,\"F\",E132:E145)","v":16},{"$f":"E10/E20","v":2.1709633649932156E-2},{"$f":"C10/C5","v":2.3512023298425243E-2},{"$f":"C10/A5","v":5.3078619095761528E-3}]
["Asian Pacific Male",null,{"$f":"SUMIF(D167:D185,\"m\", C167:C185)","v":15381314.51},{"$f":"COUNTIF(D167:D185,\"M\")","v":11},{"$f":"SUMIF(D167:D185,\"M\",E167:E185)","v":30},{"$f":"E11/E20","v":4.0705563093622797E-2},{"$f":"C11/C5","v":3.7022851361365273E-2},{"$f":"C11/A5","v":8.3579443602393895E-3}]
["Asian Pacific Female",null,{"$f":"SUMIF(D167:D185,\"F\", C167:C185)","v":18191205.109999999},{"$f":"COUNTIF(D167:D185,\"F\")","v":7},{"$f":"SUMIF(D167:D185,\"F\",E167:E185)","v":33},{"$f":"E12/E20","v":4.4776119402985072E-2},{"$f":"C12/C5","v":4.3786263029325347E-2},{"$f":"C12/A5","v":9.8847910597130405E-3}]
["Subcontinent Asian Male",null,{"$f":"SUMIF(D148:D164,\"m\", C148:C164)","v":36917330.649999999},{"$f":"COUNTIF(D148:D164,\"M\")","v":14},{"$f":"SUMIF(D148:D164,\"M\",E148:E164)","v":36},{"$f":"E13/E20","v":4.8846675712347354E-2},{"$f":"C13/C5","v":8.886008048432556E-2},{"$f":"C13/A5","v":2.0060248771368517E-2}]
["Subcontinent Asian Female",null,{"$f":"SUMIF(D148:D164,\"F\", C148:C164)","v":1071090},{"$f":"COUNTIF(D148:D164,\"F\")","v":2},{"$f":"SUMIF(D148:D164,\"F\",E148:E164)","v":6},{"$f":"E14/E20","v":8.1411126187245584E-3},{"$f":"C14/C5","v":2.5781155335497224E-3},{"$f":"C14/A5","v":5.8201206528796267E-4}]
["Native American Male",null,{"$f":"SUMIF(D117:D129,\"m\", C117:C129)","v":16613797.35},{"$f":"COUNTIF(D117:D129,\"M\")","v":8},{"$f":"SUMIF(D117:D129,\"M\",E117:E129)","v":33},{"$f":"E15/E20","v":4.4776119402985072E-2},{"$f":"C15/C5","v":3.9989439747623645E-2},{"$f":"C15/A5","v":9.0276545462558526E-3}]
["Native American Female",null,{"$f":"SUMIF(D117:D129,\"F\", C117:C129)","v":1885216.8},{"$f":"COUNTIF(D117:D129,\"F\")","v":4},{"$f":"SUMIF(D117:D129,\"F\",E117:E129)","v":4},{"$f":"E16/E20","v":5.4274084124830389E-3},{"$f":"C16/C5","v":4.5377201880223888E-3},{"$f":"C16/A5","v":1.0243947037910579E-3}]
["Non Minority Women",null,{"$f":"SUMIF(D192:D249,\"F\", C192:C249)","v":113765039.06999998},{"$f":"COUNTIF(D192:D249,\"F\")","v":58},{"$f":"SUMIF(D192:D249,\"F\",E192:E249)","v":233},{"$f":"E17/E20","v":0.31614654002713705},{"$f":"C17/C5","v":0.27383265122562811},{"$f":"C17/A5","v":6.18179848067823E-2}]
["Other Men",null,{"$f":"SUMIF(D188:D189,\"m\", C188:C189)","v":1350925.9},{"$f":"COUNTIF(D188:D189,\"M\")","v":1},{"$f":"SUMIF(D188:D189,\"M\",E188:E189)","v":1},{"$f":"E18/E20","v":1.3568521031207597E-3},{"$f":"C18/C5","v":3.2516810421763238E-3},{"$f":"C18/A5","v":7.3407012772969561E-4}]
[null,null,null,null,null,{"$f":"E19/E20","v":0},{"$f":"C19/C5","v":0},{"$f":"C19/A5","v":0}]
["Total  ",null,{"$f":"SUM(C7:C18)","v":415454616.38999999},{"$f":"SUM(D7:D19)","v":202},{"$f":"SUM(E7:E19)","v":737}]
["Total Primes Contracts",null,{"$f":"SUM(D254:D274,J254:J274,G254:G274)","v":103}]
[]
["Yellow = DBEs",null,"Green = Trucking",{"$f":"COUNTIF(B30:B249,43)","v":33},{"$f":"SUM(SUMIF(B29:B114,\"43\",C29:C114),SUMIF(B116:B189,\"43\",C116:C189),SUMIF(B191:B249,\"43\",C191:C249))","v":53998214.920000002},{"$f":"E23/C5","v":0.12997379927849984}]
["Red = Prime Contractor",null,"Blue = Supplier",{"$f":"COUNTIF(B30:B249,33)","v":29},{"$f":"SUM(SUMIF(B30:B114,\"33\",C30:C114),SUMIF(B117:B189,\"33\",C117:C189),SUMIF(B192:B249,\"33\",C192:C249))","v":79599711.760000005},{"$f":"E24/C5","v":0.19159664767156495}]
["Red Italic = DBE firm as Prime",null,"White = Other",{"$f":"COUNTIF(B30:B249,-4142)","v":140},{"$f":"C5-(E23+E24)","v":281856689.70999998},{"$f":"E25/C5","v":0.67842955304993524}]
["BOLD = women"]
["* = Used both as Trucking & Supplier"]
[]
["Hispanic American","Column1","Dollars","M/F","Contract","Contract #","Prime","Prime Name","Districts"]
["3P LANDSCAPING ",-4142,3175775,"M",4,{"$f":"FETCHCOMMENT(E30)","v":"08-1C5704\n12-0N8904\n06-0X3804\n04-4J4604"},4,{"$f":"FETCHCOMMENT(G30)","v":"SEMA CONSTRUCTION INC\nSECURITY PAVING COMPANY, INC.\nGRIFFITH COMPANY\nCALIFORNIA HIGHWAY CONSTRUCTION GROUP, INC."},"4,6,8,12"]
["A & M CONSULTING ENGINEERS",-4142,44800,"M",3,{"$f":"FETCHCOMMENT(E31)","v":"10-1E3004\n04-2Q7004\n04-1Q4604"},2,{"$f":"FETCHCOMMENT(G31)","v":"BAY CITIES PAVING & GRADING, INC.\nO.C. JONES & SONS, INC."},"4,10"]
["A STAR SWEEPING",43,1001080,"M",6,{"$f":"FETCHCOMMENT(E32)","v":"01-0J6314\n03-4H0704\n01-0E11U4\n03-1H9904\n03-3H6104\n01-0H1504"},6,{"$f":"FETCHCOMMENT(G32)","v":"GRANTIE CONSTRUCTION COMPANY\nDESILVA GATES CONSTRUCTION LLC\nA. TEICHERT & SON INC DBA TEICHERT CONSTRUCTION\nO.C. JONES & SONS INC\nBAY CITIES PAVING & GRADING INC\nCAL VALLEY CONSTRUCTION INC"},"1,3,4,6"]
["ABSL CONSTRUCTION",-4142,7746489.5499999998,"M",23,{"$f":"FETCHCOMMENT(E33)","v":"01-0J6314\n02-4H0204\n03-4H0704\n10-0G8304\n01-0E11U4\n03-1H9904\n11-430254\n03-1H6304\n04-4J5404\n05-1H3104\n10-1E3004\n04-1Q5814\n01-0C55U4\n03-2J3204\n03-3H6104\n04-1J9604\n06-0X3004\n06-1A4604\n01-0H1504\n04-3W7504\n04-3W7604\n07-322504\n04-2Q7004\n01-0H1704\n04-0P1204\n07-356604\n03-3H5604\n04-1Q4604\n04-2Q7604"},13,{"$f":"FETCHCOMMENT(G33)","v":"GRANTIE CONSTRUCTION COMPANY\nTULLIS INC\nDESILVA GATES CONSTRUCTION LLC\nVIKING CONSTRUCTION COMPANY\nA. TEICHERT & SON INC DBA TEICHERT CONSTRUCTION\nCSI/CJA A JOINT VENTURE\nO.C. JONES & SONS, INC.\nGHILOTTI BROS, INC.\nBAY CITIES PAVING & GRADING, INC.\nAMERICAN CIVIL CONSTRUCTORS WEST COAST, LLC dba ACC WEST COAST\nBEADOR CONSTRUCTION COMPANY, INC.\nMYERS & SONS CONSTRUCTION LLC\nFLATIRON WEST INC."},"1,2,3,4,7,10,11"]
["AERO-ENVIRONMENTAL CONSULTING",-4142,22000,"M",1,{"$f":"FETCHCOMMENT(E34)","v":"04-3W7604"},1,{"$f":"FETCHCOMMENT(G34)","v":"AMERICAN CIVIL CONSTRUCTORS WEST COAST, LLC"},4]
["ALL STATE TRUCKING",43,51260,"M",1,{"$f":"FETCHCOMMENT(E35)","v":"08-1C5704"},1,{"$f":"FETCHCOMMENT(G35)","v":"SEMA CONSTRUCTION"},8]
["ALCORN FENCE COMPANY",-4142,67989,"M",1,{"$f":"FETCHCOMMENT(E36)","v":"07-322904"},1,{"$f":"FETCHCOMMENT(G36)","v":"C. A. RASMUSSEN, INC."},7]
["ALFARO GENERAL ENGINEERING",-4142,21070695.439999998,"M",2,{"$f":"FETCHCOMMENT(E37)","v":"07-338604"},1,{"$f":"FETCHCOMMENT(G37)","v":"ALFARO COMMUNICATIONS CONSTRUCTION, INC."},"7,8"]
["ALTAMONT REBAR CORP",-4142,472500,"M",1,{"$f":"FETCHCOMMENT(E38)","v":"04-2Q5704"},1,{"$f":"FETCHCOMMENT(G38)","v":"DISNEY CONSTRUCTION, INC."},4]
["ALVAREZ AND SHAW INC",43,2183337,"M",1,{"$f":"FETCHCOMMENT(E39)","v":"11-430304"},1,{"$f":"FETCHCOMMENT(G39)","v":"SB GENERAL ENGINEERING"},11]
["ANCO IRON & CONSTRUCTION",-4142,295699.78999999998,"M",1,{"$f":"FETCHCOMMENT(E40)","v":"09-368004"},1,{"$f":"FETCHCOMMENT(G40)","v":"PAPICH CONSTRUCITON COMPANY INC"},9]
["ARBISO TRANPORTATION INC",43,1377920,"M",3,{"$f":"FETCHCOMMENT(E41)","v":"02-3H6504\n02-4H0204\n02-4H0504"},2,{"$f":"FETCHCOMMENT(G41)","v":"J.F. SHEA CONSTRUCTION INC\nTULLIS INC"},2]
["ARGUELLO CONCRETE CONSTRUCTION ",-4142,110160,"M",1,{"$f":"FETCHCOMMENT(E42)","v":"06-0X3004"},1,{"$f":"FETCHCOMMENT(G42)","v":"BAY CITIES PAVING AND GRADING"},6]
["AUSTIN ENTERPRISE",-4142,3998292.75,"F",19,{"$f":"FETCHCOMMENT(E43)","v":"10-0G8304\n01-0E11U4\n03-1H9904\n11-430394\n05-1H3104\n10-1E3004\n11-2T3434\n03-3H6104\n01-0H1504\n04-3W7504\n04-3W7604\n06-0X2604\n07-322504\n04-2Q7004\n04-1Q4604\n04-2Q7604\n06-0W8204\n06-0X0604\n08-1K4904"},11,{"$f":"FETCHCOMMENT(G43)","v":"VIKING CONSTRUCTION COMPANY INC\nGRANITE CONSTRUCTION COMPANY\nA. TEICHERT & SON INC DBA TEICHERT CONSTRUCTION\nGRIFFITH COMPANY\nBAY CITIES PAVING & GRADING, INC.\nWALSH CONSTRUCTION COMPANY II, LLC\nDESILVA GATES CONSTRUCTION LLC\nAMERICAN CIVIL CONSTRUCTORS WEST COAST, LLC dba ACC WEST COAST\nBEADOR CONSTRUCTION COMPANY, INC.\nO.C. JONES & SONS, INC.\nGHILOTTI BROS, INC."},"1,3,4,5,6,7,8,10,11"]
["BARGAS ENVIRONMENTAL CONSULTING",-4142,96990,"F",2,{"$f":"FETCHCOMMENT(E44)","v":"03-4H0704\n03-1H9904"},2,{"$f":"FETCHCOMMENT(G44)","v":"DESILVA GATES CONSTRUCTION LLC\nA. TEICHERT & SON INC DBA TEICHERT CONSTRUCTION"},3]
["BAY LINE CUTTING AND CORING",-4142,30920,"M",2,{"$f":"FETCHCOMMENT(E45)","v":"04-0K7804\n04-2Q7604"},1,{"$f":"FETCHCOMMENT(G45)","v":"GHILOTTI BROS INC"},4]
["BELLAGIO CONSTRUCITON ",-4142,50547,"M",1,{"$f":"FETCHCOMMENT(E46)","v":"06-0X3004"},1,{"$f":"FETCHCOMMENT(G46)","v":"BAY CITIES PAVING AND GRADING"},6]
["BERT W. SALAS",-4142,715884,"M",1,{"$f":"FETCHCOMMENT(E47)","v":"11-2T3434"},1,{"$f":"FETCHCOMMENT(G47)","v":"WALSH CONSTRUCTION COMPANY II, LLC"},11]
["BLANCO CONSTRUCTION",-4142,158500,"M",1,{"$f":"FETCHCOMMENT(E48)","v":"12-0S3104"},1,{"$f":"FETCHCOMMENT(G48)","v":"AUTOBAHN CONSTRUCTION INC."},12]
["BRUCE ANDERSON",-4142,927740,"M",1,{"$f":"FETCHCOMMENT(E49)","v":"07-320804"},1,{"$f":"FETCHCOMMENT(G49)","v":"CALPROMAX ENGINEERING, INC."},7]
["BT TRUCKING",43,1740496.6,"M",2,{"$f":"FETCHCOMMENT(E50)","v":"12-0S1504\n03-3H6104"},2,{"$f":"FETCHCOMMENT(G50)","v":"POWELL CONSTRUCTORS, INC\nDESILVA GATES CONSTRUCTOIN LLC"},"3,12"]
["C & N REINFORCING INC",-4142,8851522.6400000006,"M",5,{"$f":"FETCHCOMMENT(E51)","v":"04-0K7804\n04-4J5404\n10-1E3004\n03-3H5604\n04-1Q4604"},4,{"$f":"FETCHCOMMENT(G51)","v":"BAY CITIES PAVING & GRADING, INC.\nGHILOTTI BROS, INC.\nFLATIRON WEST INC.\nO.C. JONES & SONS, INC."},"3,4,10"]
["CENTRAL COAST TRAFFIC SAFETY, INC.",-4142,852349.7,"M",2,{"$f":"FETCHCOMMENT(E52)","v":"05-1H3104\n09-368004"},2,{"$f":"FETCHCOMMENT(G52)","v":"GRANITE CONSTRUCTION COMPANY\nPAPICH CONSTRUCITON COMPANY INC"},"5,9"]
["CHAVEZ TRUCKING",43,2056114.65,"F",1,{"$f":"FETCHCOMMENT(E53)","v":"04-1Q5814"},1,{"$f":"FETCHCOMMENT(G53)","v":"BAY CITIES PAVING & GRADING, INC."},4]
["CLAY MIRANDA TRUCKING",-4142,409616.88,"M",1,{"$f":"FETCHCOMMENT(E54)","v":"06-0X2604"},1,{"$f":"FETCHCOMMENT(G54)","v":"A. TEICHERT & SON, INC. DBA TEICHERT CONSTRUCTION"},6]
["COASTLINE SWEEPERS",-4142,55890,"F",1,{"$f":"FETCHCOMMENT(E55)","v":"05-1H3104"},1,{"$f":"FETCHCOMMENT(G55)","v":"GRANITE CONSTRUCTION COMPANY"},5]
["COVARRUBIAS TRAFFIC CONTROL",-4142,555200,"F",2,{"$f":"FETCHCOMMENT(E56)","v":"07-322504\n08-1E1404"},1,{"$f":"FETCHCOMMENT(G56)","v":"BEADOR CONSTRUCTION COMPANY, INC."},"7,8"]
["D.B. ELECTRIC, INC.",-4142,477570,"M",1,{"$f":"FETCHCOMMENT(E57)","v":"07-351304"},1,{"$f":"FETCHCOMMENT(G57)","v":"POWELL CONSTRUCTORS, INC."},7]
["DELTA BAY CONSULTANTS LLC",-4142,36354,"M",11,{"$f":"FETCHCOMMENT(E58)","v":"01-0J6314\n10-1H6504\n10-0G8304\n01-0E11U4\n04-4J5404\n07-347504\n01-0C55U4\n03-4H8904\n06-0X2604\n01-0H1704\n03-3H5604"},9,{"$f":"FETCHCOMMENT(G58)","v":"GRANITE CONSTRUCTION COMPANY\nMARINA LANDSCAPE INC\nVIKING CONSTRUCTION COMPANY INC\nGHILOTTI BROS, INC.\nGRIFFITH COMPANY\nST. FRANCIS ELECTRIC LLC\nA. TEICHERT & SON, INC. DBA TEICHERT CONSTRUCTION\nPACIFIC INFRASTRUCTURE CONSTRUCTION, LLC\nFLATIRON WEST INC."},"1,3,4,6,7,10"]
["DESIGN BUILD ENGINEERING",-4142,1426760,"M",2,{"$f":"FETCHCOMMENT(E59)","v":"07-322904\n08-1H3804"},2,{"$f":"FETCHCOMMENT(G59)","v":"C. A. RASMUSSEN, INC.\nACCU CONSTRUCTION"},"7,8"]
["DIRT DYNASTY",-4142,4131946.98,"M",3,{"$f":"FETCHCOMMENT(E60)","v":"10-1G2504\n04-0Q0704\n04-3W7604"},3,{"$f":"FETCHCOMMENT(G60)","v":"DIRT DYNASTY\nST. FRANCIS ELECTRIC LLC\nAMERICAN CIVIL CONSTRUCTORS WEST COAST, LLC"},"4,10"]
["DRAGON MATERIAL TRANSPORT",33,11675318.129999999,"F",11,{"$f":"FETCHCOMMENT(E61)","v":"02-3H6804\n02-4H0204\n02-4H6604\n02-4H0504\n03-4H6004\n04-0K7804\n04-4J5404\n04-1J9604\n04-2Q7004\n04-1Q4604\n06-0W8204"},8,{"$f":"FETCHCOMMENT(G61)","v":"J.F. SHEA CONSTRUCTION INC\nTULLIS INC\nSTIMPEL-WIEBELHAUS ASSOCIATES\nDESILVA GATES CONSTRUCTION LLC\nGHILOTTI BROS\nO.C. JONES & SONS INC\nBAY CITIES PAVING AND GRADING\nGRANITE CONSTRUCTION COMPANY"},"2,3,4,6"]
["DRS REBAR INC",-4142,347699.06,"M",2,{"$f":"FETCHCOMMENT(E62)","v":"07-356604\n08-1J8604"},2,{"$f":"FETCHCOMMENT(G62)","v":"MYERS & SONS CONSTRUCTION LLC\nPETERSON-CHASE GENERAL ENGINEERING CONSTRUCTION, INC."},"7,8"]
["E & L GONZALEZ ENGINEERING",-4142,1503549,"M",1,{"$f":"FETCHCOMMENT(E63)","v":"07-330304"},1,{"$f":"FETCHCOMMENT(G63)","v":"FEC FUTURE CONTRACTORS AND ENGINEERS INC"},7]
["ENDEMIC ENVIRONMENTAL SERVICES",-4142,484170,"M",10,{"$f":"FETCHCOMMENT(E64)","v":"02-0J6404\n08-1J2604\n01-0C55U4\n02-4H0004\n01-0H1504\n06-0X2604\n07-322504\n03-3H5604\n06-0X0604\n08-1K4904"},7,{"$f":"FETCHCOMMENT(G64)","v":"BALDWIN CONTRACTING COMPANY, INC. DBA KNIFE RIVER CONSTRUCTION\nMARTIN MARIETTA SAN DIEGO AGGREGATES LLC DBA ATP GENERAL ENGINEERING CONTRACTORS\nGRANITE CONSTRUCTION COMPANY\nROCKY MOUNTAIN CONSTRUCTION\nA. TEICHERT & SON, INC. DBA TEICHERT CONSTRUCTION\nBEADOR CONSTRUCTION COMPANY, INC.\nFLATIRON WEST INC."},"1,2,6,7,8"]
["FEHOKO CONCRETE INC",-4142,626025,"M",1,{"$f":"FETCHCOMMENT(E65)","v":"07-356604"},1,{"$f":"FETCHCOMMENT(G65)","v":"MYERS & SONS CONSTRUCTION, LLC"},7]
["FLASH TRAFFIC, INC.",-4142,125931,"F",3,{"$f":"FETCHCOMMENT(E66)","v":"03-1H6304\n06-0X2604\n06-0X0604"},2,{"$f":"FETCHCOMMENT(G66)","v":"O.C. JONES & SONS, INC.\nA. TEICHERT & SON, INC. DBA TEICHERT CONSTRUCTION"},"3,6"]
["FRONTLINE TRAFFIC CONTROL",-4142,4199285,"M",8,{"$f":"FETCHCOMMENT(E67)","v":"07-330304\n07-322904\n12-0S1504\n07-347504\n07-348804\n07-349504\n07-356604\n03-3H5604"},6,{"$f":"FETCHCOMMENT(G67)","v":"FEC FUTURE CONTRACTORS AND ENGINEERS INC\nC. A. RASMUSSEN, INC.\nPOWELL CONSTRUCTORS INC\nGRIFFITH COMPANY\nALFARO COMMUNICATIONS CONSTRUCTION\nMYERS & SONS CONSTRUCTION, LLC\nFLATIRON WEST INC."},"3,7,12"]
["FULL TRAFFIC MAINTENANCE, INC.",-4142,3494999.52,"M",4,{"$f":"FETCHCOMMENT(E68)","v":"07-338604\n08-496124\n07-356604\n08-1G6704"},3,{"$f":"FETCHCOMMENT(G68)","v":"ALFARO COMMUNICATIONS CONSTRUCTION, INC.\nMYERS & SONS CONSTRUCTION, LLC\nORTIZ ENTERPRISES, INC."},"7,8"]
["G&F CONCRETE CUTTING, INC.",-4142,5089165.6099999994,"F",10,{"$f":"FETCHCOMMENT(E69)","v":"07-322904\n11-430394\n10-1E3004\n11-2T3434\n03-3H6104\n06-0X3004\n07-349504\n07-322504\n07-356604\n08-1G6704"},9,{"$f":"FETCHCOMMENT(G69)","v":"C. A. RASMUSSEN, INC.\nGRIFFITH COMPANY\nBAY CITIES PAVING & GRADING, INC.\nWALSH CONSTRUCTION COMPANY II, LLC\nDESILVA GATES CONSTRUCTION LLC\nALFARO COMMUNICATIONS CONSTRUCITON INC\nBEADOR CONSTRUCTION COMPANY, INC.\nMYERS & SONS CONSTRUCTION, LLC\nORTIZ ENTERPRISES, INC."},"3,6,7,8,11"]
["G&G ELECTRIC",-4142,2205734,"M",1,{"$f":"FETCHCOMMENT(E70)","v":"08-1J8604"},1,{"$f":"FETCHCOMMENT(G70)","v":"PETERSON-CHASE GENERAL ENGINEERING CONSTRUCTION, INC."},8]
["GEOSTRUCTURAL",-4142,1164996,"M",3,{"$f":"FETCHCOMMENT(E71)","v":"12-0N8904\n04-4K1404\n06-0X0604"},3,{"$f":"FETCHCOMMENT(G71)","v":"SECURITY PAVING COMPANY, INC.\nGRANITE ROCK COMPANY\nA. TEICHERT & SON, INC. DBA TEICHERT CONSTRUCTION"},"4,6,12"]
["GOLDEN BAY FENCE PLUS INC",33,50274,"M",2,{"$f":"FETCHCOMMENT(E72)","v":"04-0K7804\n04-0P1204"},2,{"$f":"FETCHCOMMENT(G72)","v":"GHILOTTI BROS., INC.\nO.C. JONES & SONS INC"},4]
["GOLDEN WEST FUEL",-4142,4001246,"F",1,{"$f":"FETCHCOMMENT(E73)","v":"11-430254"},1,{"$f":"FETCHCOMMENT(G73)","v":"BALDWIN CONTRACTING COMPANY, INC. DBA KNIFE RIVER CONSTRUCTION"},11]
["GRIT & GRAVEL",-4142,7209938.9399999995,"F",2,{"$f":"FETCHCOMMENT(E74)","v":"07-322904\n07-356604"},2,{"$f":"FETCHCOMMENT(G74)","v":"C. A. RASMUSSEN, INC.\nMYERS & SONS CONSTRUCTION, LLC"},7]
["HER-CON CONSTRUCTION SERVICES",-4142,2188997.63,"M",2,{"$f":"FETCHCOMMENT(E75)","v":"07-355104\n07-346204"},2,{"$f":"FETCHCOMMENT(G75)","v":"ALDRIDGE ELECTRIC, INC.\nSELECT ELECTRIC INC"},7]
["HIGH LIGHT ELECTRIC INC",-4142,6881407,"M",6,{"$f":"FETCHCOMMENT(E76)","v":"06-0U4304\n06-0X3304\n11-430394\n05-1H3104\n11-2T3434\n07-322504"},5,{"$f":"FETCHCOMMENT(G76)","v":"GRIFFITH COMPANY \nSECURITY PAVING COMPANY\nGRANITE CONSTRUCTION COMPANY\nWALSH CONSTRUCTION COMPANY II, LLC\nBEADOR CONSTRUCTION COMPANY, INC."},"5,6,7,12"]
["J PEREZ TRANSPORT",43,359880,"M",1,{"$f":"FETCHCOMMENT(E77)","v":"09-368004"},1,{"$f":"FETCHCOMMENT(G77)","v":"PAPICH CONSTRUCITON COMPANY INC"},9]
["JEFFERSON STATE HIGHWAY INC",-4142,1454727.55,"M",12,{"$f":"FETCHCOMMENT(E78)","v":"01-0J6314\n02-3H6504\n02-3H82U4\n02-4H6604\n02-0J6404\n02-4H0504\n03-1H6304\n01-0C55U4\n02-4H0004\n09-368004\n03-2J9104\n10-1L2604"},10,{"$f":"FETCHCOMMENT(G78)","v":"GRANITE CONSTRUCTION COMPANY\nJ.F. SHEA CONSTRUCTION INC\nHAT CREEK CONSTRUCTION & MATERIALS INC\nSTIMPEL-WIEBELHAUS ASSOCIATES INC\nBALDWIN CONTRACTING COMPANY INC\nTULLIS INC\nO.C. JONES & SONS, INC.\nROCKY MOUNTAIN CONSTRUCTION\nPAPICH CONSTRUCTION COMPANY INC"},"1,2,3,9,10"]
["KODIAK TRUCKING INC",43,933390,"M",2,{"$f":"FETCHCOMMENT(E79)","v":"06-0X3304\n06-0W8204"},2,{"$f":"FETCHCOMMENT(G79)","v":"SECURITY PAVING COMPANY INC\nGRANITE CONSTRUCTION COMPANY"},6]
["L&B METAL PRODUCT FABRICATION",-4142,131038.05,"M",1,{"$f":"FETCHCOMMENT(E80)","v":"02-4H0504"},1,{"$f":"FETCHCOMMENT(G80)","v":"TULLIS INC"},2]
["LA FIRMA INC",-4142,111300,"M",5,{"$f":"FETCHCOMMENT(E81)","v":"01-0J6314\n05-1H3104\n01-0C55U4\n06-0W9704\n01-0H1704"},2,{"$f":"FETCHCOMMENT(G81)","v":"GRANITE CONSTRUCTION\nBORTOLUSSI & WATKIN INC"},"1,5,6"]
["LA STEEL SERVICES, INC.",-4142,2459475.0499999998,"M",3,{"$f":"FETCHCOMMENT(E82)","v":"12-0N8904\n07-322504\n08-1G6704"},3,{"$f":"FETCHCOMMENT(G82)","v":"SECURITY PAVING COMPANY, INC.\nBEADOR CONSTRUCTION COMPANY, INC.\nORTIZ ENTERPRISES, INC."},"7,8,12"]
["LOGISTICAL ENTERPRISES",33,3840457.4400000004,"F",10,{"$f":"FETCHCOMMENT(E83)","v":"03-1H9904\n07-320804\n02-0J6404\n03-4H6004\n03-1H6304\n03-2J3204\n03-3H6104\n03-3H5604\n12-0R6804\n12-0S3304"},7,{"$f":"FETCHCOMMENT(G83)","v":"A. TEICHERT & SON INC DBA TEICHERT CONSTRUCTION\nCALPROMAX ENGINEERING, INC.\nDESILVA GATES CONSTRUCTION\nCSI/CJA A JOINT VENTURE\nO.C. JONES & SONS, INC.\nFLATIRON WEST INC.\nCHUMO CONSTRUCTION INC."},"2,3,7"]
["LONE STAR LANDSCAPE",-4142,955588,"M",7,{"$f":"FETCHCOMMENT(E84)","v":"03-1H6304\n04-2Q5704\n04-3Q7604\n04-0Q0704\n04-4K1404\n04-0Q1804\n04-0K1104"},7,{"$f":"FETCHCOMMENT(G84)","v":"O.C. JONES & SONS, INC.\nDISNEY CONSTRUCTION, INC.\nGHILOTTI BROS INC\nST. FRANCIS ELECTRIC LLC\nGRANITE ROCK COMPANY\nANVIL BUILDERS INC\nFBD VANGUARD CONSTRUCTION INC"},"3,4"]
["M & S ENVIRONMENTAL LANDSCAPES",33,1586339.5,"M",8,{"$f":"FETCHCOMMENT(E85)","v":"01-0H6104\n02-3H6504\n02-3H82U4\n02-4H0204\n02-4H6604\n01-0E11U4\n02-0J6404\n02-4H0504"},7,{"$f":"FETCHCOMMENT(G85)","v":"MERCER FRASER COMPANY\nJ.F. SHEA CONSTRUCTION INC\nHAT CREEK CONSTRUCTION AND MATERIALS INC\nTULLIS INC\nSATIMPEL-WIEBELHAUS ASSOCIATES INC\nGRANITE CONSTRUCTION COMPANY\nBALDWIN CONTRACTING DBA KNIFE RIVER"},"1,2"]
["MANERI TRAFFIC CONTROL",-4142,9641864.620000001,"F",14,{"$f":"FETCHCOMMENT(E86)","v":"11-430394\n12-0N8904\n07-321604\n08-1H3804\n11-430254\n07-351304\n08-1H9914\n08-1J2604\n07-322504\n07-355104\n07-356604\n08-1G6704\n12-0R6804\n12-0S3304"},13,{"$f":"FETCHCOMMENT(G86)","v":"GRIFFITH COMPANY\nSECURITY PAVING COMPANY, INC.\nRJ NOBLE COMPANY\nACCU CONSTRUCTION INC\nCSI/CJA A JOINT VENTURE\nPOWELL CONSTRUCTORS, INC.\nPETERSON-CHASE GENERAL ENGINEERING CONSTRUCTION INC.\nMARTIN MARIETTA SAN DIEGO AGGREGATES LLC DBA ATP GENERAL ENGINEERING CONTRACTORS\nBEADOR CONSTRUCTION COMPANY, INC.\nALDRIDGE ELECTRIC, INC.\nMYERS & SONS CONSTRUCTION, LLC\nORTIZ ENTERPRISES, INC.\nCHUMO CONSTRUCTION INC."},"7,8,11,12"]
["MAVERICK SWEEPING",43,368480,"F",1,{"$f":"FETCHCOMMENT(E87)","v":"07-356604"},1,{"$f":"FETCHCOMMENT(G87)","v":"MYERS & SONS CONSTRUCTION, LLC"},7]
["MESA TRAFFIC SERVICES",-4142,238875,"M",1,{"$f":"FETCHCOMMENT(E88)","v":"06-0X3004"},1,{"$f":"FETCHCOMMENT(G88)","v":"BAY CITIES PAVING AND GRADING"},6]
["MJD ENGINEERING",-4142,8469616,"M",2,{"$f":"FETCHCOMMENT(E89)","v":"03-4H6004\n03-3H6104"},2,{"$f":"FETCHCOMMENT(G89)","v":"TULLIS INC\nDESILVA GATES  CONSTRUCITON LLC"},"2,3"]
["MONZON & SON ENTERPRISES, INC.",43,9050592,"M",6,{"$f":"FETCHCOMMENT(E90)","v":"12-0N8904\n07-322504\n07-356604\n08-1K4904\n12-0R6804\n12-0S3304"},5,{"$f":"FETCHCOMMENT(G90)","v":"SECURITY PAVING COMPANY, INC.\nBEADOR CONSTRUCTION COMPANY, INC.\nMYERS & SONS CONSTRUCTION, LLC\nGRANITE CONSTRUCTION COMPANY\nCHUMO CONSTRUCTION INC."},"7,8,12"]
["MORALES CONTRACTING",-4142,69092.5,"M",1,{"$f":"FETCHCOMMENT(E91)","v":"11-430254"},1,{"$f":"FETCHCOMMENT(G91)","v":"CSI/CJA A JOINT VENTURE"},11]
["POLO ENGINEERING INC",-4142,2058303.6,"F",1,{"$f":"FETCHCOMMENT(E92)","v":"07-357004"},1,{"$f":"FETCHCOMMENT(G92)","v":"POLO ENGINEERING INC"},7]
["PRE-CON PRODUCTS LTD",-4142,698314.92999999993,"M",3,{"$f":"FETCHCOMMENT(E93)","v":"06-0U4304\n05-1H3104\n06-0X3004"},2,{"$f":"FETCHCOMMENT(G93)","v":"GRIFFITH COMPANY\nGRANITE CONSTRUCTION COMPANY"},"5, 6"]
["QA CONSTRUCTORS",-4142,354020,"M",1,{"$f":"FETCHCOMMENT(E94)","v":"10-0G8304"},1,{"$f":"FETCHCOMMENT(G94)","v":"VIKING CONSTRUCTION COMPANY INC"},10]
["QUALITY TRAFFIC CONTROL",-4142,1368247.4,"M",2,{"$f":"FETCHCOMMENT(E95)","v":"08-1C5704\n08-1G6404"},2,{"$f":"FETCHCOMMENT(G95)","v":"SEMA CONSTRUCTION INC\nSULLY-MILLER CONTRACTING COMPANY"},8]
["RANGEL BROTHERS TRUCKING",43,1680735,"M",1,{"$f":"FETCHCOMMENT(E96)","v":"06-0X3304"},1,{"$f":"FETCHCOMMENT(G96)","v":"SECURITY PAVING COMPANY"},6]
["REYCON CONSTRUCTION, INC.",-4142,2355700,"M",1,{"$f":"FETCHCOMMENT(E97)","v":"11-2T3434"},1,{"$f":"FETCHCOMMENT(G97)","v":"WALSH CONSTRUCTION COMPANY II, LLC"},11]
["ROBINSON SWEEPING INC",43,701050,"F",5,{"$f":"FETCHCOMMENT(E98)","v":"01-0H6104\n04-3Q7604\n06-0X2604\n01-0H1704\n06-0X0604"},4,{"$f":"FETCHCOMMENT(G98)","v":"MERCER FRASER COMPANY\nGHILOTTI BROS\nA. TEICHERT & SON, INC. DBA TEICHERT CONSTRUCTION\nGRANITE CONSTRUCTION COMPANY"},"1,4,6"]
["RUPERT CONSTRUCTION SUPPLY",33,4165192.7199999997,"M",4,{"$f":"FETCHCOMMENT(E99)","v":"03-3H6104\n07-356604\n03-3H5604\n08-1G6704"},4,{"$f":"FETCHCOMMENT(G99)","v":"DESILVA GATES CONSTRUCTION LLC\nMYERS & SONS CONSTRUCTION, LLC\nFLATIRON WEST INC.\nORTIZ ENTERPRISES, INC."},"3,7"]
["S & S TRUCKING",43,82989.55,"M",4,{"$f":"FETCHCOMMENT(E100)","v":"04-0K7804\n04-4J5404\n04-4K1404\n04-1Q4604"},3,{"$f":"FETCHCOMMENT(G100)","v":"GHILOTTI BROS., INC.\nGRANITE ROCK COMPANY\nO.C. JONES & SONS, INC."},4]
["SAFEWAY SIGN COMPANY",-4142,62742.2,"M",1,{"$f":"FETCHCOMMENT(E101)","v":"03-3H5604"},1,{"$f":"FETCHCOMMENT(G101)","v":"FLATIRON WEST INC."},3]
["SANDOVAL SWEEPING",43,700000,"M",1,{"$f":"FETCHCOMMENT(E102)","v":"07-321604"},1,{"$f":"FETCHCOMMENT(G102)","v":"R.J. NOBLE COMPANY"},7]
["SANTAMARIA CONCRETE",-4142,939991.94,"M",2,{"$f":"FETCHCOMMENT(E103)","v":"04-3W7504\n04-0Q4404"},2,{"$f":"FETCHCOMMENT(G103)","v":"AMERICAN CIVIL CONSTRUCTORS WEST COAST, LLC dba ACC WEST COAST\nHOSELEY CORPORATION\n"},4]
["SIERRA TREE COMPANY",-4142,42000,"M",1,{"$f":"FETCHCOMMENT(E104)","v":"04-4G21A4"},1,{"$f":"FETCHCOMMENT(G104)","v":"JOHN SEMSEN LANDSCAPING CO., INC."},4]
["SWPPQUEEN",-4142,314775,"F",7,{"$f":"FETCHCOMMENT(E105)","v":"03-4H0704\n07-322904\n03-4H6004\n07-347504\n11-2T3434\n03-3H6104\n08-1G6704"},5,{"$f":"FETCHCOMMENT(G105)","v":"DESILVA GATES CONSTRUCTION\nC. A. RASMUSSEN, INC.\nGRIFFITH COMPANY\nWALSH CONSTRUCTION COMPANY II, LLC\nORTIZ ENTERPRISES, INC."},"3,7,8,11"]
["T.D.W. CONSTRUCTION INC",-4142,1342633,"M",2,{"$f":"FETCHCOMMENT(E106)","v":"03-4H0704\n04-1Q4604"},2,{"$f":"FETCHCOMMENT(G106)","v":"DESILVA GATES CONSTRUCTION\nO.C. JONES & SONS, INC."},"3,4"]
["TAYLOR JANE CONSTRUCTION LP",-4142,1213619,"F",2,{"$f":"FETCHCOMMENT(E107)","v":"06-0X2604\n06-0X0604"},1,{"$f":"FETCHCOMMENT(G107)","v":"A. TEICHERT & SON, INC. DBA TEICHERT CONSTRUCTION"},6]
["TESORO CONTRACTORS",-4142,456530,"M",1,{"$f":"FETCHCOMMENT(E108)","v":"07-356604"},1,{"$f":"FETCHCOMMENT(G108)","v":"MYERS & SONS CONSTRUCTION, LLC"},7]
["TOTAL SITE SUPPLY COMPANY",-4142,44108.6,"M",1,{"$f":"FETCHCOMMENT(E109)","v":"06-0X2604"},1,{"$f":"FETCHCOMMENT(G109)","v":"A. TEICHERT & SON, INC. DBA TEICHERT CONSTRUCTION"},6]
["TR DIGITAL, INC.",-4142,848000,"M",1,{"$f":"FETCHCOMMENT(E110)","v":"03-4H8904"},1,{"$f":"FETCHCOMMENT(G110)","v":"ST. FRANCIS ELECTRIC LLC"},3]
["TULLY INC",-4142,652320,"F",18,{"$f":"FETCHCOMMENT(E111)","v":"10-1H6504\n10-0G8304\n03-1H9904\n07-320804\n03-1H6304\n10-1E3004\n04-1Q5814\n03-2J3204\n04-1J9604\n04-3Q7604\n06-0X3004\n03-4H8904\n04-0Q0704\n04-2Q7004\n04-0P1204\n10-1L2604\n04-0K1104\n04-1Q4604"},10,{"$f":"FETCHCOMMENT(G111)","v":"MARINA LANDSCAPE INC\nVIKING CONSTRUCTION COMPANY INC\nA. TEICHERT & SON INC DBA TEICHERT CONSTRUCTION\nCALPROMAX ENGINEERING, INC.\nO.C. JONES & SONS, INC.\nBAY CITIES PAVING & GRADING, INC.\nGHILOTTI BROS INC\nST. FRANCIS ELECTRIC LLC\nPACIFIC INFRASTRUCTURE CONSTRUCTION, LLC\nFBD VANGUARD CONSTRUCTION, INC"},"3,4,6,10"]
["VALDIVIA TRUCKING",43,5646456,"M",6,{"$f":"FETCHCOMMENT(E112)","v":"01-0J6314\n01-0E11U4\n01-0C55U4\n04-1J9604\n03-4H8904\n01-0H1704"},3,{"$f":"FETCHCOMMENT(G112)","v":"GRANITE CONSTRUCTION COMPANY\nO.C. JONES & SONS INC\nST. FRANCIS ELECTRIC LLC"},"1,4"]
["WESTERN TRAFFIC SUPPLY, INC.",-4142,8222528,"M",6,{"$f":"FETCHCOMMENT(E113)","v":"04-1Q5814\n10-1E3004\n04-3W7504\n04-3W7604\n04-2Q7004\n07-356604"},3,{"$f":"FETCHCOMMENT(G113)","v":"BAY CITIES PAVING & GRADING, INC.\nAMERICAN CIVIL CONSTRUCTORS WEST COAST, LLC\nMYERS & SONS CONSTRUCTION, LLC"},"4,7,10"]
[null,null,null,null,null,{"$f":"FETCHCOMMENT(E114)","v":""},null,{"$f":"FETCHCOMMENT(G114)","v":""}]
[]
["Native American","Column1","Dollars","M/F","Contract","Contract #","Prime","Prime Name","Districts"]
["CREST EQUIPMENT",-4142,757512,"F",1,{"$f":"FETCHCOMMENT(E117)","v":"11-430254"},1,{"$f":"FETCHCOMMENT(G117)","v":"CSI/CJA A JOINT VENTURE"},11]
["DISABLED AMERICAN VETERAN",33,197013.78,"M",1,{"$f":"FETCHCOMMENT(E118)","v":"06-1A4604"},1,{"$f":"FETCHCOMMENT(G118)","v":"CAL VALLEY CONSTRUCTION INC"},6]
["FORCE TRAFFIC CONTROL",-4142,479000,"M",1,{"$f":"FETCHCOMMENT(E119)","v":"06-0X3804"},1,{"$f":"FETCHCOMMENT(G119)","v":"GRIFFITH COMPANY"},6]
["GLOBAL TRANSLOADING",-4142,49230,"F",1,{"$f":"FETCHCOMMENT(E120)","v":"07-351304"},1,{"$f":"FETCHCOMMENT(G120)","v":"POWELL CONSTRUCTORS, INC."},7]
["G R SUNDBERG, INC.",-4142,771060,"M",1,{"$f":"FETCHCOMMENT(E121)","v":"01-0K6404"},1,{"$f":"FETCHCOMMENT(G121)","v":"G R SUNDBERG, INC."},1]
["KRC SAFETY CO INC",33,3288518.23,"M",16,{"$f":"FETCHCOMMENT(E122)","v":"10-0G8304\n10-1L6304\n02-0J6404\n04-1J9604\n06-0W9704\n06-1A4604\n09-368004\n04-0Q0704\n06-0X2604\n03-2J9104\n04-2Q7004\n10-1L2604\n04-0K1104\n06-0W8204\n06-1E2204\n09-387604"},16,{"$f":"FETCHCOMMENT(G122)","v":"VIKING CONSTRUCTION COMPANY\nCORAL CONSTRUCTION COMPANY\nBALDWIN CONTRACTING COMPANY INC DBA KNIFE RIVER\nO.C. JONES & SONS INC\nBORTOLUSSI & WATKIN INC\nCAL VALLEY CONSTRUCTION INC\nPAPICH CONSTRUCITON COMPANY\nST. FRANCIS ELECTRIC LLC\nA. TEICHERT & SON, INC. DBA TEICHERT CONSTRUCTION\nQ&D CONSTRUCTION LLC\nBAY CITIES PAVING & GRADING, INC.\nPACIFIC INFRASTRUCTURE CONSTRUCTION, LLC\nFBD VANGUARD CONSTRUCTION, INC\nGRANITE CONSTRUCTION COMPANY\nCORAL CONSTRUCTION COMPANY\nDANNY C. HUBBS CONSTRUCTION, INC. DBA D.C. HUBBS CONSTRUCTION"},"2,3,4,6,9,10"]
["MCCULLOUGH CONSTRUCTION INC",-4142,8619677.8399999999,"M",1,{"$f":"FETCHCOMMENT(E123)","v":"01-434844"},1,{"$f":"FETCHCOMMENT(G123)","v":"MCCULLOUGH CONSTRUCTION INC"},1]
["S.T. RHOADES CONSTRUCTION",-4142,1320062,"M",3,{"$f":"FETCHCOMMENT(E124)","v":"01-0H6104\n02-0J6404\n02-4H0504"},3,{"$f":"FETCHCOMMENT(G124)","v":"MERCER FRASER\nBALDWIN CONTRACTING DBA KNIFE RIVER\nTULLIS INC"},"1,2"]
["SAM'S EQUIPMENT & SUPPLIES ",33,1614515.5,"M",7,{"$f":"FETCHCOMMENT(E125)","v":"10-1H6504\n03-1H9904\n12-0S1504\n06-0W9704\n09-368004\n04-0P1204\n03-3H5604"},7,{"$f":"FETCHCOMMENT(G125)","v":"MARINA LANDSCAPE INC\nA. TEICHERT & SON INC DBA TEICHERT CONSTRUCTION\nPOWELL CONSTRUCTORS INC\nBORTOLUSSI & WATKIN INC\nPAPICH CONSTRUCTION COMPANY\nO.C. JONES & SONS INC\nFLATIRON WEST INC."},"3,4,6,9,10,12"]
["SPIRIT ROAD OILS",-4142,151710,"F",1,{"$f":"FETCHCOMMENT(E126)","v":"01-0H1504"},1,{"$f":"FETCHCOMMENT(G126)","v":"GRANITE CONSTRUCTION COMPANY"},1]
["TOTAL TRAFFIC CONTROL",33,323950,"M",3,{"$f":"FETCHCOMMENT(E127)","v":"10-1H6504\n04-0Q1804\n04-0Q4404"},3,{"$f":"FETCHCOMMENT(G127)","v":"MARINA LANDSCAPE INC\nANIVL BUILDERS INC\nHOSELEY CORPORATION"},"4,10"]
["WEST COAST DRILLING",-4142,926764.8,"F",1,{"$f":"FETCHCOMMENT(E128)","v":"01-0J6314"},1,{"$f":"FETCHCOMMENT(G128)","v":"GRANITE CONSTRUCTION COMPANY"},1]
[null,null,null,null,null,{"$f":"FETCHCOMMENT(E129)","v":""},null,{"$f":"FETCHCOMMENT(G129)","v":""}]
[]
["African American","Column1","Dollars","M/F","Contract","Contract #","Prime","Prime Name","Districts"]
["ALLUVION BIOLOGICAL CONSULTING",-4142,536010,"M",1,{"$f":"FETCHCOMMENT(E132)","v":"01-0E11U4"},1,{"$f":"FETCHCOMMENT(G132)","v":"GRANITE CONSTRUCTION COMPANY"},1]
["APPIAN UDBE SWPPPS",-4142,850,"F",1,{"$f":"FETCHCOMMENT(E133)","v":"02-4H0004"},1,{"$f":"FETCHCOMMENT(G133)","v":"ROCKY MOUNTAIN CONSTRUCTION"},2]
["BLACK DIAMOND ASPHALT INC",33,9648610.370000001,"F",12,{"$f":"FETCHCOMMENT(E134)","v":"01-0H6104\n02-3H6504\n03-4H0704\n03-1H9904\n02-0J6404\n03-1H6304\n10-1E3004\n01-0C55U4\n03-2J3204\n06-0X3004\n04-0P1204\n03-3H5604"},9,{"$f":"FETCHCOMMENT(G134)","v":"MERCER FRASER COMPANY\nJ.F. SHEA CONSTRUCTION INC\nDESILVA GATES CONSTRUCTION LLC\nA. TEICHERT & SON INC DBA TEICHERT CONSTRUCTION\nBALDWIN CONTRACTING COMPANY INC DBA KNIFE RIVER\nO.C. JONES & SONS, INC.\nBAY CITIES PAVING & GRADING, INC.\nGRANITE CONSTRUCTION COMPANY\nFLATIRON WEST INC."},"1,2,3,4,6,10"]
["CGO CONSTRUCTION COMPANY",-4142,182900,"M",3,{"$f":"FETCHCOMMENT(E135)","v":"11-430394\n12-0N8904\n07-356604"},3,{"$f":"FETCHCOMMENT(G135)","v":"GRIFFITH COMPANY\nSECURITY PAVING COMPANY, INC.\nMYERS & SONS CONSTRUCTION, LLC"},"7,11,12"]
["DEPENDABLE PETROLEUM PRODUCTS",33,7546334,"M",8,{"$f":"FETCHCOMMENT(E136)","v":"08-1G6404\n11-430254\n08-1J2604\n03-3H6104\n01-0H1504\n01-0H1704\n08-1G6704\n08-1K4904"},6,{"$f":"FETCHCOMMENT(G136)","v":"SULLY-MILLER CONTRACTING COMPANY\nCSI/CJA A JOINT VENTURE\nMARTIN MARIETTA SAN DIEGO AGGREGATES LLC DBA ATP GENERAL ENGINEERING CONTRACTORS\nDESILVA GATES CONSTRUCTION LLC\nGRANITE CONSTRUCTION COMPANY\nORTIZ ENTERPRISES, INC."},"1,3,8,11"]
["DOUBLE G'S SUPPLY, INC.",33,118718.25,"F",3,{"$f":"FETCHCOMMENT(E137)","v":"03-1H6304\n10-1E3004\n03-4H8904"},3,{"$f":"FETCHCOMMENT(G137)","v":"O.C. JONES & SONS, INC.\nBAY CITIES PAVING & GRADING, INC.\nST. FRANCIS ELECTRIC LLC"},"3,10"]
["DYNAMIC GENERATOR SERVICE INC.",-4142,246250,"M",1,{"$f":"FETCHCOMMENT(E138)","v":"06-0W8204"},1,{"$f":"FETCHCOMMENT(G138)","v":"GRANITE CONSTRUCTION COMPANY"},6]
["K & G CONCRETE PUMPING",-4142,344828,"M",2,{"$f":"FETCHCOMMENT(E139)","v":"01-0E11U4\n03-3H5604"},2,{"$f":"FETCHCOMMENT(G139)","v":"GRANITE CONSTRUCTION COMPANY\nFLATIRON WEST INC."},"1,3"]
["SYNERGY TRAFFIC CONTROL",-4142,1576388.8599999999,"M",4,{"$f":"FETCHCOMMENT(E140)","v":"06-0X3304\n11-2T3434\n07-356604\n08-1G6704"},4,{"$f":"FETCHCOMMENT(G140)","v":"SECURITY PAVING COMPANY\nWALSH CONSTRUCTION COMPANY II, LLC\nMYERS & SONS CONSTRUCTION, LLC\nORTIZ ENTERPRISES, INC."},"6,7,8,11"]
["TAYLOR WATER SERVICES",-4142,30000,"M",1,{"$f":"FETCHCOMMENT(E141)","v":"01-0J6314"},1,{"$f":"FETCHCOMMENT(G141)","v":"GRANTIE CONSTRUCTION COMPANY"},1]
["THE QUALITY FIRM, ACS, AC",-4142,147610,"M",2,{"$f":"FETCHCOMMENT(E142)","v":"11-430394\n07-322504"},2,{"$f":"FETCHCOMMENT(G142)","v":"GRIFFITH COMPANY\nBEADOR CONSTRUCTION COMPANY, INC."},"7,11"]
["THOMPSON CONTRACTING",-4142,720448,"M",4,{"$f":"FETCHCOMMENT(E143)","v":"03-1H6304\n04-4J5404\n03-2J3204\n03-3H5604"},3,{"$f":"FETCHCOMMENT(G143)","v":"O.C. JONES & SONS, INC.\nGHILOTTI BROS, INC.\nFLATIRON WEST INC."},"3,4"]
["TK TRANSPORTATION",-4142,117640,"M",1,{"$f":"FETCHCOMMENT(E144)","v":"02-4H6604"},1,{"$f":"FETCHCOMMENT(G144)","v":"STIMPEL-WIEBELHAUS ASSOCIATES INC"},2]
[null,null,null,null,null,{"$f":"FETCHCOMMENT(E145)","v":""},null,{"$f":"FETCHCOMMENT(G145)","v":""}]
[]
["Sub Cont Asian","Column1","Dollars","M/F","Contract","Contract #","Prime","Prime Name","Districts"]
["A1 TRUCKING SVS, INC.",43,13308109.120000001,"M",9,{"$f":"FETCHCOMMENT(E148)","v":"04-2G7804\n10-1E3004\n04-1Q5814\n06-0X3004\n04-0Q0704\n04-3W7504\n04-3W7604\n04-2Q7004\n04-1Q4604"},5,{"$f":"FETCHCOMMENT(G148)","v":"FBD VANGUARD CONSTRUCTION, INC.\nBAY CITIES PAVING & GRADING, INC.\nST. FRANCIS ELECTRIC LLC\nAMERICAN CIVIL CONSTRUCTORS WEST COAST, LLC dba ACC WEST COAST\nO.C. JONES & SONS, INC."},"4,6,10"]
["ACCURATE EARTHWORKS INC",-4142,419875.2,"M",1,{"$f":"FETCHCOMMENT(E149)","v":"04-0K1304"},1,{"$f":"FETCHCOMMENT(G149)","v":"DESILVA GATES CONSTRUCTION LLC"},4]
["ALL CITIES TRUCKING",43,91600,"M",1,{"$f":"FETCHCOMMENT(E150)","v":"04-1Q4604"},1,{"$f":"FETCHCOMMENT(G150)","v":"O.C. JONES & SONS, INC."},4]
["AMERICA PACIFIC CONSTRUCTION",43,629600,"M",1,{"$f":"FETCHCOMMENT(E151)","v":"08-1H9924"},1,{"$f":"FETCHCOMMENT(G151)","v":"GBA ENGINEERING, INC."},8]
["BANWAIT TRUCKING",43,64000,"M",1,{"$f":"FETCHCOMMENT(E152)","v":"10-1L2604"},1,{"$f":"FETCHCOMMENT(G152)","v":"PACIFIC INFRASTRUCTURE CONSTRUCTION, LLC"},10]
["CHANNA TRUCKING INC",43,141300,"F",1,{"$f":"FETCHCOMMENT(E153)","v":"04-0K7804"},1,{"$f":"FETCHCOMMENT(G153)","v":"GHILOTTI BROS INC"},4]
["DESTINATION ANYWHERE, INC.",-4142,1048545,"M",1,{"$f":"FETCHCOMMENT(E154)","v":"03-1H6304"},1,{"$f":"FETCHCOMMENT(G154)","v":"O.C. JONES & SONS, INC."},3]
["HEIR & SON CONSTRUCTION, INC.",-4142,787764.2,"M",2,{"$f":"FETCHCOMMENT(E155)","v":"04-3W7604\n07-356604"},2,{"$f":"FETCHCOMMENT(G155)","v":"AMERICAN CIVIL CONSTRUCTORS WEST COAST, LLC\nMYERS & SONS CONSTRUCTION, LLC"},"4,7"]
["JASS BOYS TRUCK LINES",-4142,5204820,"M",3,{"$f":"FETCHCOMMENT(E156)","v":"04-4J5404\n10-1E3004\n04-2Q7004"},2,{"$f":"FETCHCOMMENT(G156)","v":"GHILOTTI BROS, INC.\nBAY CITIES PAVING & GRADING, INC."},"4,10"]
["S & S TRUCKING",43,25800,"M",1,{"$f":"FETCHCOMMENT(E157)","v":"04-3Q7604"},1,{"$f":"FETCHCOMMENT(G157)","v":"GHILOTTI BROS INC"},4]
["SEQUOIA CONSULTANT INC",33,1765156,"M",12,{"$f":"FETCHCOMMENT(E158)","v":"03-4H0704\n07-322904\n03-4H6004\n11-430254\n12-0S1504\n05-1H3104\n08-1J2604\n11-2T3434\n03-3H6104\n07-356604\n03-3H5604\n08-1K4904"},10,{"$f":"FETCHCOMMENT(G158)","v":"ST. FRANCIS ELECTRIC LLC\nC. A. RASMUSSEN, INC.\nDESILVA GATES CONSTRUCTION\nCSI/CJA A JOINT VENTURE\nPOWELL CONSTRUCTORS INC\nGRANITE CONSTRUCTION COMPANY\nMARTIN MARIETTA SAN DIEGO AGGREGATES LLC DBA ATP GENERAL ENGINEERING CONTRACTORS\nWALSH CONSTRUCTION COMPANY II, LLC\nMYERS & SONS CONSTRUCTION, LLC\nFLATIRON WEST INC."},"3,5,7,8,11,12"]
["SHK HAULING, INC",43,274500,"M",1,{"$f":"FETCHCOMMENT(E159)","v":"03-3H5604"},1,{"$f":"FETCHCOMMENT(G159)","v":"FLATIRON WEST INC."},3]
["SIERRA GEOTECH DBE, INC.",-4142,929790,"F",5,{"$f":"FETCHCOMMENT(E160)","v":"03-1H9904\n03-3H6104\n04-3Q7604\n01-0H1504\n06-0X2604"},4,{"$f":"FETCHCOMMENT(G160)","v":"A. TEICHERT & SON INC DBA TEICHERT CONSTRUCTION\nDESILVA GATES CONSTRUCTION LLC\nGHILOTTI BROS INC\nGRANITE CONSTRUCTION COMPANY"},"1,3,4,6"]
["SONNY'S TRUCKING",43,160500,"M",1,{"$f":"FETCHCOMMENT(E161)","v":"10-1E3004"},1,{"$f":"FETCHCOMMENT(G161)","v":"BAY CITIES PAVING & GRADING, INC."},10]
["THE DESIGN BUILD, INC.",-4142,898753.3,"M",1,{"$f":"FETCHCOMMENT(E162)","v":"03-3H5604"},1,{"$f":"FETCHCOMMENT(G162)","v":"FLATIRON WEST INC."},3]
["TSI ENGINEERING, INC.",-4142,12238307.83,"M",1,{"$f":"FETCHCOMMENT(E163)","v":"10-1C2704"},1,{"$f":"FETCHCOMMENT(G163)","v":"TSI ENGINEERING, INC."},10]
[null,null,null,null,null,{"$f":"FETCHCOMMENT(E164)","v":""},null,{"$f":"FETCHCOMMENT(G164)","v":""}]
[]
["Asian Pacific","Column1","Dollars","M/F","Contract","Contract #","Prime","Prime Name","Districts"]
["ACE FENCE COMPANY",-4142,9471336.4499999993,"F",16,{"$f":"FETCHCOMMENT(E167)","v":"06-0X3304\n07-320804\n11-430394\n11-430254\n12-0S1504\n05-1H3104\n07-351304\n08-1J2604\n11-2T3434\n06-0W9704\n06-0X3804\n07-322504\n07-346204\n08-1E1404\n08-1G6704\n08-1K4904"},12,{"$f":"FETCHCOMMENT(G167)","v":"SECURITY PAVING COMPANY\nCALPROMAX ENGINEERING, INC.\nGRIFFITH COMPANY\nPOWELL CONSTRUCTORS INC\nCSI/CJA A JOINT VENTURE\nGRANITE CONSTRUCTION COMPANY\nMARTIN MARIETTA SAN DIEGO AGGREGATES LLC DBA ATP GENERAL ENGINEERING CONTRACTORS\nWALSH CONSTRUCTION COMPANY II, LLC\nBORTOLUSSI & WATKIN INC\nBEADOR CONSTRUCTION COMPANY, INC.\nSELECT ELECTRIC\nORTIZ ENTERPRISES, INC."},"5,6,7,8,11,12"]
["ACE SWEEPERS & WATER TRUCKS",-4142,149400,"M",2,{"$f":"FETCHCOMMENT(E168)","v":"04-0P1204\n04-1Q4604"},1,{"$f":"FETCHCOMMENT(G168)","v":"O.C. JONES & SONS, INC."},4]
["BAY TECH ENGINEERING, INC.",-4142,1607500,"M",1,{"$f":"FETCHCOMMENT(E169)","v":"04-2Q5704"},1,{"$f":"FETCHCOMMENT(G169)","v":"DISNEY CONSTRUCTION, INC."},4]
["BRIDGE RUBBER BEARING",-4142,59896,"M",4,{"$f":"FETCHCOMMENT(E170)","v":"01-0J6314\n10-0G8304\n01-0E11U4\n03-3H6104"},3,{"$f":"FETCHCOMMENT(G170)","v":"GRANTIE CONSTRUCTION COMPANY\nVIKING CONSTRUCTION COMPANY\nDESILVA GATES CONSTRUCTION LLC"},"1,3,10"]
["CALIFORNIA PROFESSIONAL",-4142,3626767,"M",4,{"$f":"FETCHCOMMENT(E171)","v":"07-320804\n07-321604\n08-1J2604\n06-1E2204"},4,{"$f":"FETCHCOMMENT(G171)","v":"CALPROMAX ENGINEERING, INC.\nR.J. NOBLE COMPANY\nMARTIN MARIETTA SAN DIEGO AGGREGATES LLC DBA ATP GENERAL ENGINEERING CONTRACTORS\nCORAL CONSTRUCTION COMPANY"},"6,7,8"]
["GLOBAL ROAD SEALING INC",-4142,2823414,"M",9,{"$f":"FETCHCOMMENT(E172)","v":"06-0X3304\n07-322904\n12-0N8904\n07-338604\n08-496124\n07-349504\n12-0S3104\n01-0H1704\n12-0R6804"},6,{"$f":"FETCHCOMMENT(G172)","v":"SECURITY PAVING COMPANY\nC. A. RASMUSSEN, INC.\nALFARO COMMUNICATIONS CONSTRUCTION, INC.\nAUTOBAHN CONSTRUCTION INC.\nGRANITE CONSTRUCTION COMPANY\nCHUMO CONSTRUCTION INC."},"1,6,7,8,12"]
["GOLDEN STATE TRUCKING",43,640770,"M",1,{"$f":"FETCHCOMMENT(E173)","v":"04-1Q4604"},1,{"$f":"FETCHCOMMENT(G173)","v":"O.C. JONES & SONS, INC."},4]
["HUNSAKER & ASSOCIATES",-4142,115108,"M",1,{"$f":"FETCHCOMMENT(E174)","v":"07-322904"},1,{"$f":"FETCHCOMMENT(G174)","v":"C. A. RASMUSSEN, INC."},7]
["JJ NGUYEN",33,646424,"M",3,{"$f":"FETCHCOMMENT(E175)","v":"04-4J5404\n04-2Q7004\n04-2Q7604"},2,{"$f":"FETCHCOMMENT(G175)","v":"GHILOTTI BROS, INC.\nBAY CITIES PAVING & GRADING, INC."},4]
["LMS TRANSPORT",-4142,2543228.5099999998,"M",3,{"$f":"FETCHCOMMENT(E176)","v":"06-0X3304\n07-322904\n11-430394"},3,{"$f":"FETCHCOMMENT(G176)","v":"SECURITY PAVING COMPANY\nC. A. RASMUSSEN, INC.\nGRIFFITH COMPANY"},"6,7,11"]
["NITTA EROSION CONTROL",-4142,18072,"F",3,{"$f":"FETCHCOMMENT(E177)","v":"02-4H0004\n01-0H1504\n03-2J9104"},3,{"$f":"FETCHCOMMENT(G177)","v":"ROCKY MOUNTAIN CONSTRUCTION\nGRANITE CONSTRUCTION COMPANY\nQ & D CONSTRUCTION"},"1,2,3"]
["PSI CONSTRUCTION & ENGINEERING, INC.",-4142,808830,"F",1,{"$f":"FETCHCOMMENT(E178)","v":"08-1J8604"},1,{"$f":"FETCHCOMMENT(G178)","v":"PETERSON-CHASE GENERAL ENGINEERING CONSTRUCTION, INC."},8]
["PRIME SUPPLY 1",-4142,240286.66,"F",6,{"$f":"FETCHCOMMENT(E179)","v":"08-1C5704\n10-1H6504\n03-1H9904\n05-1H3104\n07-347504\n11-2T3434"},6,{"$f":"FETCHCOMMENT(G179)","v":"SEMA CONSTRUCTION INC\nMARINA LANDSCAPE INC\nA. TEICHERT & SON INC DBA TEICHERT CONSTRUCTION\nGRANITE CONSTRUCTION COMPANY\nGRIFFITH COMPANY\nWALSH CONSTRUCTION COMPANY II, LLC"},"3,5,7,8,10,11"]
["SRK ENGINEERING, INC.",-4142,1902964,"F",1,{"$f":"FETCHCOMMENT(E180)","v":"08-1G6704"},1,{"$f":"FETCHCOMMENT(G180)","v":"ORTIZ ENTERPRISES, INC."},8]
["TRI COUNTIES TRUCKING",43,5485016,"F",5,{"$f":"FETCHCOMMENT(E181)","v":"03-4H0704\n03-1H9904\n02-4H0004\n03-3H6104\n03-3H5604"},4,{"$f":"FETCHCOMMENT(G181)","v":"DESILVA GATES CONSTRUCTION\nA. TEICHERT & SON INC DBA TEICHERT CONSTRUCTION\nROCKY MOUNTAIN CONSTRUCTION\nORTIZ ENTERPRISES, INC."},"2,3"]
["TRAFFIC LOOPS CRACKFILLING",-4142,264700,"F",1,{"$f":"FETCHCOMMENT(E182)","v":"11-430254"},1,{"$f":"FETCHCOMMENT(G182)","v":"CSI/CJA A JOINT VENTURE"},11]
["TRINITY FENCE COMPANY",-4142,1269107,"M",1,{"$f":"FETCHCOMMENT(E183)","v":"07-356604"},1,{"$f":"FETCHCOMMENT(G183)","v":"MYERS & SONS CONSTRUCTION, LLC"},7]
["ZETH ENGINEERING AND CONSTRUCTION",-4142,1899700,"M",1,{"$f":"FETCHCOMMENT(E184)","v":"08-1K4904"},1,{"$f":"FETCHCOMMENT(G184)","v":"GRANITE CONSTRUCTION COMPANY"},8]
[null,null,null,null,null,{"$f":"FETCHCOMMENT(E185)","v":""},null,{"$f":"FETCHCOMMENT(G185)","v":""}]
[]
["Other","Column1","Dollars","M/F","Contract","Contract #","Prime","Prime Name","Districts"]
["ALFARO COMMUNICATIONS CONSTRUCTION, INC.",-4142,{"$f":"'[1]Construction Worksheet'!AW10","v":1350925.9},"M",1,{"$f":"FETCHCOMMENT(E188)","v":"08-1J6804\n"},1,{"$f":"FETCHCOMMENT(G188)","v":"ALFARO COMMUNICATIONS CONSTRUCTION INC"},8]
[null,null,null,null,null,{"$f":"FETCHCOMMENT(E189)","v":""},null,{"$f":"FETCHCOMMENT(G189)","v":""}]
[]
["Non Minority Women","Column1","Dollars","M/F","Contract","Contract #","Prime","Prime Name","Districts"]
["ACTION SWEEPING SERVICES, INC.",43,552720,"F",4,{"$f":"FETCHCOMMENT(E192)","v":"03-1H6304\n03-2J3204\n04-1J9604\n06-0W8204"},1,{"$f":"FETCHCOMMENT(G192)","v":"O.C. JONES & SONS, INC."},"3,4,6"]
["ALTA GROUP",-4142,1239249.8899999999,"F",4,{"$f":"FETCHCOMMENT(E193)","v":"01-0E11U4\n10-1E3004\n04-0Q6104\n04-0Q4404"},3,{"$f":"FETCHCOMMENT(G193)","v":"GRANITE CONSTRUCTION COMPANY\nBAY CITIES PAVING & GRADING, INC.\nHOSELEY CORPORATION"},"1,4,10"]
["AMERICAN PAVING SUPPLY",33,4925535.7699999996,"F",3,{"$f":"FETCHCOMMENT(E194)","v":"11-430254\n10-1E3004\n07-356604"},3,{"$f":"FETCHCOMMENT(G194)","v":"CSI/CJA A JOINT VENTURE\nBAY CITIES PAVING & GRADING, INC.\nMYERS & SONS CONSTRUCTION, LLC"},"7,10,11"]
["ANYTHING WORKS",-4142,109620,"F",2,{"$f":"FETCHCOMMENT(E195)","v":"01-0H1504\n01-0H1704"},1,{"$f":"FETCHCOMMENT(G195)","v":"GRANITE CONSTRUCTION COMPANY"},1]
["AURORA INDUSTRIAL HYGIENE",-4142,5400,"F",3,{"$f":"FETCHCOMMENT(E196)","v":"05-1H3104\n06-0W9704\n08-1K4904"},2,{"$f":"FETCHCOMMENT(G196)","v":"GRANITE CONSTRUCTION COMPANY\nBORTOLUSSI & WATKIN"},"5,6,8"]
["AVILA TRAFFIC SAFETY",33,463900,"F",1,{"$f":"FETCHCOMMENT(E197)","v":"06-0U4304"},1,{"$f":"FETCHCOMMENT(G197)","v":"GRIFFITH COMPANY"},6]
["BANCROFT CONSTRUCTION SERVICES",43,622237,"F",1,{"$f":"FETCHCOMMENT(E198)","v":"11-2T3434"},1,{"$f":"FETCHCOMMENT(G198)","v":"WALSH CONSTRUCTION COMPANY II, LLC"},11]
["BOBS BACKHOE & TRUCKING",43,213231,"F",1,{"$f":"FETCHCOMMENT(E199)","v":"05-1H3104"},1,{"$f":"FETCHCOMMENT(G199)","v":"GRANITE CONSTRUCTION COMPANY"},5]
["CAL SIGNAL CORP",33,994034.89,"F",4,{"$f":"FETCHCOMMENT(E200)","v":"02-3H6504\n02-4H0204\n02-4H0504\n10-1E3004"},3,{"$f":"FETCHCOMMENT(G200)","v":"J.F. SHEA CONSTRUCTION INC\nTULLIS INC\nBAY CITIES PAVING & GRADING, INC."},"2,10"]
["CALIFORNIA CONSTRUCTION",-4142,179440,"F",1,{"$f":"FETCHCOMMENT(E201)","v":"06-0X2604"},1,{"$f":"FETCHCOMMENT(G201)","v":"A. TEICHERT & SON, INC. DBA TEICHERT CONSTRUCTION"},6]
["CAT TRACKING",-4142,352187.25,"F",3,{"$f":"FETCHCOMMENT(E202)","v":"07-320804\n06-1A4604\n08-1E1404"},3,{"$f":"FETCHCOMMENT(G202)","v":"CALPROMAX ENGINEERING, INC.\nCAL VALLEY CONSTRUCTION INC\nBEADOR CONSTRUCTION COMPANY, INC."},"6,7,8"]
["CES",-4142,91647,"F",1,{"$f":"FETCHCOMMENT(E203)","v":"12-0N8904"},1,{"$f":"FETCHCOMMENT(G203)","v":"SECURITY PAVING COMPANY, INC."},12]
["CHAVEZ GENERAL ENGINEERING",-4142,3798000,"F",2,{"$f":"FETCHCOMMENT(E204)","v":"02-3H6804\n02-4H0004"},2,{"$f":"FETCHCOMMENT(G204)","v":"J.F. SHEA CONSTRUCTION\nROCKY MOUNTAIN CONSTRUCTION"},2]
["CMC TRAFFIC CONTROL",-4142,1011920,"F",7,{"$f":"FETCHCOMMENT(E205)","v":"04-2G7804\n04-0Q6104\n04-4K1404\n03-3H5604\n04-1Q4604\n06-0X0604\n08-1K4904"},7,{"$f":"FETCHCOMMENT(G205)","v":"FBD VANGUARD CONSTRUCTION, INC.\nHOSELEY CORPORATION\nGRANITE ROCK COMPANY\nFLATIRON WEST INC.\nO.C. JONES & SONS, INC.\nA. TEICHERT & SON, INC. DBA TEICHERT CONSTRUCTION\nGRANITE CONSTRUCTION COMPANY"},"3,4,6,8"]
["COLUMBIA ELECTRIC, INC.",-4142,2905998,"F",6,{"$f":"FETCHCOMMENT(E206)","v":"04-2G7804\n04-0K7804\n04-4J5404\n04-1Q5814\n04-0K1104\n04-2Q7604"},3,{"$f":"FETCHCOMMENT(G206)","v":"FBD VANGUARD CONSTRUCTION, INC.\nGHILOTTI BROS INC\nBAY CITIES PAVING & GRADING, INC."},4]
["CONTERA CONSTRUCTION CORP.",-4142,1984590,"F",1,{"$f":"FETCHCOMMENT(E207)","v":"08-1G6704"},1,{"$f":"FETCHCOMMENT(G207)","v":"ORTIZ ENTERPRISES, INC."},8]
["COOPER ENGINEERING",33,1437986.24,"F",3,{"$f":"FETCHCOMMENT(E208)","v":"11-430254\n12-0R6804\n12-0S3304"},2,{"$f":"FETCHCOMMENT(G208)","v":"CSI/CJA A JOINT VENTURE\nCHUMO CONSTRUCTION INC."},"11,12"]
["DEES BURKE ENGINEERING",-4142,11597301.92,"F",17,{"$f":"FETCHCOMMENT(E209)","v":"01-0J6314\n02-3H6804\n10-0G8304\n03-1H9904\n11-430394\n03-4H6004\n04-0K7804\n12-0S1504\n04-4J5404\n07-351304\n03-3H6104\n04-1J9604\n06-0X3004\n03-2J9104\n07-356604\n03-3H5604\n06-0W8204"},13,{"$f":"FETCHCOMMENT(G209)","v":"GRANTIE CONSTRUCTION COMPANY\nJ.F. SHEA CONSTRUCTION COMPANY INC\nVIKING CONSTRUCTION COMPANY INC\nA. TEICHERT & SON INC DBA TEICHERT CONSTRUCTION\nGRIFFITH COMPANY\nDESILVA GATES CONSTRUCTION\nGHILOTTI BROS INC\nPOWELL CONSTRUCTORS\nO.C. JONES AND SONS INC\nBAY CITIES PAVING & GRADING INC\nQ&D CONSTRUCTION LLC\nMYERS & SONS CONSTRUCTION, LLC\nFLATIRON WEST INC."},"1,2,3,4,6,7,10,11,12"]
["DIVERSIFIED LANDSCAPE CO",-4142,11785299.9,"F",9,{"$f":"FETCHCOMMENT(E210)","v":"11-430254\n08-1J2604\n07-349504\n07-322504\n08-1E3404\n07-346204\n07-356604\n08-1K4904\n12-0S3304"},9,{"$f":"FETCHCOMMENT(G210)","v":"CSI/CJA A JOINT VENTURE\nMARTIN MARIETTA SAN DIEGO AGGREGATES LLC DBA ATP GENERAL ENGINEERING CONTRACTORS\nALFARO COMMUNICATIONS CONSTRUCTION INC\nBEADOR CONSTRUCTION COMPANY, INC.\nDIVERSCAPE, INC. DBA DIVERSIFIED LANDSCAPE CO.\nSELECT ELECTRIC\nMYERS & SONS CONSTRUCTION, LLC\nGRANITE CONSTRUCTION COMPANY\nCHUMO CONSTRUCTION INC."},"7,8,11,12"]
["DONALD MIRANDA TRUCKING, INC.",43,503575,"F",2,{"$f":"FETCHCOMMENT(E211)","v":"06-0W8204\n06-0X0604"},2,{"$f":"FETCHCOMMENT(G211)","v":"GRANITE CONSTRUCTION COMPANY\nA. TEICHERT & SON, INC. DBA TEICHERT CONSTRUCTION"},6]
["DOUBLE E TRANSPORTATION",33,2530997.75,"F",2,{"$f":"FETCHCOMMENT(E212)","v":"06-0U4304\n06-0X3804"},1,{"$f":"FETCHCOMMENT(G212)","v":"GRIFFITH COMPANY"},6]
["E. AMEZCUA TRUCKING INC",43,31790,"F",1,{"$f":"FETCHCOMMENT(E213)","v":"04-0P1204"},1,{"$f":"FETCHCOMMENT(G213)","v":"O.C. JONES & SONS, INC."},4]
["EVERLIGHTS, INC.",-4142,1977390,"F",1,{"$f":"FETCHCOMMENT(E214)","v":"07-355104"},1,{"$f":"FETCHCOMMENT(G214)","v":"ALDRIDGE ELECTRIC, INC."},7]
["GALLAWAY ENTERPRISES",-4142,107806,"F",4,{"$f":"FETCHCOMMENT(E215)","v":"02-4H0204\n03-4H6004\n03-1H6304\n03-3H6104"},3,{"$f":"FETCHCOMMENT(G215)","v":"TULLIS INC\nDESILVA GATES CONSTRUCTION\nO.C. JONES & SONS, INC."},"2,3"]
["GDS INDUSTRIES, INC.",-4142,880876.12,"F",3,{"$f":"FETCHCOMMENT(E216)","v":"03-4H8904\n04-0Q0704\n08-1K4904"},1,{"$f":"FETCHCOMMENT(G216)","v":"ST. FRANCIS ELECTRIC LLC\nGRANITE CONSTRUCTION COMPANY"},"3,4,8"]
["J & M LAND RESTORATION INC",-4142,2216352.7000000002,"F",6,{"$f":"FETCHCOMMENT(E217)","v":"06-0X3304\n06-0U4304\n06-0X3804\n09-368004\n06-0W8204\n06-0X0604"},5,{"$f":"FETCHCOMMENT(G217)","v":"SECURITY PAVING COMPANY\nGRIFFITH COMPANY\nPAPICH CONSTRUCTION COMPANY INC\nGRANITE CONSTRUCTION COMPANY\nA. TEICHERT & SON, INC. DBA TEICHERT CONSTRUCTION"},"6,9"]
["JARRETT FOUNDATIONS INC.",33,584670,"F",1,{"$f":"FETCHCOMMENT(E218)","v":"01-0E11U4"},1,{"$f":"FETCHCOMMENT(G218)","v":"GRANITE CONSTRUCTION COMPANY"},1]
["JOHNS EQUIPMENT RENTAL ",43,361536,"F",1,{"$f":"FETCHCOMMENT(E219)","v":"11-430254"},1,{"$f":"FETCHCOMMENT(G219)","v":"CSI/CJA A JOINT VENTURE"},11]
["K&K CONSTRUCTION SUPPLY, INC.",33,1044073.76,"F",2,{"$f":"FETCHCOMMENT(E220)","v":"03-1H9904\n03-3H5604"},2,{"$f":"FETCHCOMMENT(G220)","v":"A. TEICHERT & SON INC DBA TEICHERT CONSTRUCTION\nFLATIRON WEST INC."},3]
["LD INNOVATIONS",-4142,3593249.4,"F",3,{"$f":"FETCHCOMMENT(E221)","v":"04-0K1304\n03-4H8904\n04-0Q0704"},1,{"$f":"FETCHCOMMENT(G221)","v":"ST. FRANCIS ELECTRIC LLC"},"3,4"]
["LINDYS COLD PLANNING",-4142,6224749.1699999999,"F",8,{"$f":"FETCHCOMMENT(E222)","v":"08-1G6404\n07-322904\n11-430394\n11-430254\n05-1H3104\n09-368004\n07-322504\n08-1K4904"},7,{"$f":"FETCHCOMMENT(G222)","v":"SULLY-MILLER CONTRACTING COMPANY\nC. A. RASMUSSEN, INC.\nGRIFFITH COMPANY\nCSI/CJA A JOINT VENTURE\nGRANITE CONSTRUCTION COMPANY\nPAPICH CONSTRUCTION COMPANY, INC.\nBEADOR CONSTRUCTION COMPANY, INC."},"5,7,8,9,11"]
["LMS TRANSPORT ",33,3019262.44,"F",5,{"$f":"FETCHCOMMENT(E223)","v":"07-321604\n05-1H3104\n11-2T3434\n09-368004\n07-356604"},5,{"$f":"FETCHCOMMENT(G223)","v":"R.J.NOBLE COMPANY\nGRANITE CONSTRUCTION COMPANY\nWALSH CONSTRUCTION COMPANY II, LLC\nPAPICH CONSTRUCTION COMPANY, INC.\nMYERS & SONS CONSTRUCTION, LLC"},"5,7,9,11"]
["LOWERS INDUSTRIAL SUPPLY",33,394898.47,"F",2,{"$f":"FETCHCOMMENT(E224)","v":"12-0S1504\n07-351304"},1,{"$f":"FETCHCOMMENT(G224)","v":"POWELL CONSTRUCTORS INC"},"7,12"]
["M B PROFESSIONAL SERVICES",-4142,1101305,"F",1,{"$f":"FETCHCOMMENT(E225)","v":"07-356604"},1,{"$f":"FETCHCOMMENT(G225)","v":"MYERS & SONS CONSTRUCTION, LLC"},7]
["MCW TRAFFIC CONTROL",-4142,1926495,"F",5,{"$f":"FETCHCOMMENT(E226)","v":"02-4H6604\n10-1L6304\n03-1H6304\n10-1E3004\n04-0K1104"},5,{"$f":"FETCHCOMMENT(G226)","v":"STIMPEL-WIEBELHAUS ASSOCIATES INC\nCORAL CONSTRUCTION COMPANY\nO.C. JONES & SONS, INC.\nBAY CITIES PAVING & GRADING, INC.\nFBD VANGUARD CONSTRUCTION, INC"},"2,4,5,10"]
["MOUNTAINVEIW BIOLOGICAL",-4142,856385.66,"F",4,{"$f":"FETCHCOMMENT(E227)","v":"08-1C5704\n08-1H9914\n08-1E1404\n08-1G6704"},4,{"$f":"FETCHCOMMENT(G227)","v":"SEMA CONSTRUCTION INC\nPETERSON-CHASE GENERAL ENGINEERING CONSTRUCTION INC.\nBEADOR CONSTRUCTION COMPANY, INC.\nORTIZ ENTERPRISES, INC."},8]
["NICHOLLS TRUCKING INC",43,648750,"F",1,{"$f":"FETCHCOMMENT(E228)","v":"01-0H6104"},1,{"$f":"FETCHCOMMENT(G228)","v":"MERCER FRASER COMPANY"},1]
["PAYCO SPECIALTIES",-4142,1895878,"F",4,{"$f":"FETCHCOMMENT(E229)","v":"11-430304\n11-430394\n11-430254\n11-2T3434"},4,{"$f":"FETCHCOMMENT(G229)","v":"SB GENERAL ENGINEERING INC\nGRIFFITH COMPANY\nCSI/CJA A JOINT VENTURE\nWALSH CONSTRUCTION COMPANY II, LLC"},11]
["PC & N CONSTRUCTION INC",-4142,4435596.17,"F",16,{"$f":"FETCHCOMMENT(E230)","v":"02-3H6804\n02-4H0204\n02-3H6504\n10-1L6304\n02-4H0504\n04-0K7804\n10-1E3004\n04-1Q5814\n02-4H0004\n04-0Q6104\n06-0X2604\n01-0H1704\n04-0Q1804\n03-3H5604\n06-0W8204\n06-1E2204"},9,{"$f":"FETCHCOMMENT(G230)","v":"J.F. SHEA CONSTRUCTION INC\nTULLIS INC\nCORAL CONSTRUCTION COMPANY\nGHILOTTI BROS\nBAY CITIES PAVING & GRADING, INC.\nROCKY MOUNTAIN CONSTRUCTION \nHOSELEY CORPORATION\nA. TEICHERT & SON, INC. DBA TEICHERT CONSTRUCTION\nGRANITE CONSTRUCTION COMPANY\nANVIL BUILDERS INC\nFLATIRON WEST INC."},"1,2,3,4,6,10"]
["PLAYA SAFETY, INC.",-4142,1221130.74,"F",6,{"$f":"FETCHCOMMENT(E231)","v":"07-351304\n08-1H9914\n10-1E3004\n11-2T3434\n12-0S3104\n07-356604"},6,{"$f":"FETCHCOMMENT(G231)","v":"POWELL CONSTRUCTORS, INC.\nPETERSON-CHASE GENERAL ENGINEERING CONSTRUCTION INC.\nBAY CITIES PAVING & GRADING, INC.\nWALSH CONSTRUCTION COMPANY II, LLC\nAUTOBAHN CONSTRUCTION INC.\nMYERS & SONS CONSTRUCTION, LLC"},"7,8,10,11,12"]
["PREVAIL ENVIRONMENTAL SERVICES",-4142,941405.36,"F",1,{"$f":"FETCHCOMMENT(E232)","v":"08-1K4904"},1,{"$f":"FETCHCOMMENT(G232)","v":"GRANITE CONSTRUCTION COMPANY"},8]
["QUALITY HYDROSEEDING & RESTORATION",33,871894,"F",4,{"$f":"FETCHCOMMENT(E233)","v":"08-1J2604\n08-1E1404\n08-1G6704\n08-1K4904"},4,{"$f":"FETCHCOMMENT(G233)","v":"MARTIN MARIETTA SAN DIEGO AGGREGATES LLC DBA ATP GENERAL ENGINEERING CONTRACTORS\nBEADOR CONSTRUCTION COMPANY, INC.\nORTIZ ENTERPRISES, INC.\nGRANITE CONSTRUCTION COMPANY"},8]
["ROBERTS OIL CORPORATION",-4142,120000,"F",1,{"$f":"FETCHCOMMENT(E234)","v":"12-0N8904"},1,{"$f":"FETCHCOMMENT(G234)","v":"SECURITY PAVING COMPANY, INC."},12]
["ROLL N ROCK CONSTRUCTION",-4142,9340328.379999999,"F",12,{"$f":"FETCHCOMMENT(E235)","v":"01-0H6104\n02-3H6504\n02-3H6804\n02-4H0204\n03-4H0704\n10-0G8304\n03-1H9904\n02-4H0004\n03-3H6104\n04-3Q7604\n04-3W7604\n04-0K1104"},10,{"$f":"FETCHCOMMENT(G235)","v":"MERCER FRASER COMPANY\nJ.F. SHEA CONSTRUCTION INC\nTULLIS INC\nDESILVA GATES CONSTRUCTION\nVIKING CONSTRUCTION & MATERIALS INC\nA. TEICHERT & SON INC DBA TEICHERT CONSTRUCTION\nROCKY MOUNTAIN CONSTRUCTION \nGHILOTTI BROS INC\nAMERICAN CIVIL CONSTRUCTORS WEST COAST, LLC\nFBD VANGUARD CONSTRUCTION, INC"},"1,2,3,4,10"]
["ROUCH REBAR INC",-4142,126335.99,"F",3,{"$f":"FETCHCOMMENT(E236)","v":"11-430254\n12-0S1504\n07-351304"},2,{"$f":"FETCHCOMMENT(G236)","v":"CSI/CJA A JOINT VENTURE\nPOWELL CONSTRUCTORS INC"},"7,11,12"]
["RUPERT CONSTRUCTION SUPPLY",33,493311.06,"F",3,{"$f":"FETCHCOMMENT(E237)","v":"12-0S1504\n11-2T3434\n07-322504"},3,{"$f":"FETCHCOMMENT(G237)","v":"POWELL CONSTRUCTORS INC\nWALSH CONSTRUCTION COMPANY II, LLC\nBEADOR CONSTRUCTION COMPANY, INC."},"7,11,12"]
["S.A.M. RHODES",-4142,164800,"F",5,{"$f":"FETCHCOMMENT(E238)","v":"02-3H82U4\n03-4H0704\n02-4H0004\n01-0H1504\n01-0H1704"},4,{"$f":"FETCHCOMMENT(G238)","v":"HAT CREEK CONSTRUCTION MATERIALS\nDESILVA GATES CONSTRUCTION LLC\nROCKY MOUNTAIN CONSTRUCTION\nGRANITE CONSTRUCTION COMPANY"},"1,2,3"]
["SITE SAFE TRAFFIC SAFETY",-4142,90700,"F",1,{"$f":"FETCHCOMMENT(E239)","v":"03-3H5604"},1,{"$f":"FETCHCOMMENT(G239)","v":"FLATIRON WEST INC."},3]
["SUPER SEAL & STRIPE",-4142,190414.04,"F",3,{"$f":"FETCHCOMMENT(E240)","v":"05-1H3104\n04-2Q7604\n06-0X0604"},3,{"$f":"FETCHCOMMENT(G240)","v":"GRANITE CONSTRUCTION COMPANY\nGHILOTTI BROS, INC.\nA. TEICHERT & SON, INC. DBA TEICHERT CONSTRUCTION"},"4,5,6"]
["SUPERIOR HYDROSEEDING",-4142,6961.5,"F",1,{"$f":"FETCHCOMMENT(E241)","v":"10-1L6304"},1,{"$f":"FETCHCOMMENT(G241)","v":"CORAL CONSTRUCTION COMPANY"},10]
["T & S DVBE",33,14084973.960000001,"F",20,{"$f":"FETCHCOMMENT(E242)","v":"01-0J6314\n02-3H82U4\n01-0E11U4\n04-2G7804\n02-0J6404\n02-4H0504\n04-0K7804\n03-1H6304\n04-4J5404\n10-1E3004\n01-0C55U4\n04-1J9604\n01-0H1504\n03-4H8904\n04-0Q0704\n01-0H1704\n03-2J9104\n04-0P1204\n04-1Q4604\n04-2Q7604"},10,{"$f":"FETCHCOMMENT(G242)","v":"GRANTIE CONSTRUCTION COMPANY\nHAT CREEK CONSTRUCTION MATERIALS\nFBD VANGUARD CONSTRUCTION, INC.\nBALDWIN CONTRACTING COMPANY INC DBA KNIFE RIVER\nTULLIS INC\nGHILOTTI BROS, INC.\nO.C. JONES & SONS, INC.\nBAY CITIES PAVING & GRADING, INC.\nST. FRANCIS ELECTRIC LLC\nQ & D CONSTRUCTION"},"1,2,3,4,10"]
["TEK SERVICES ",33,1519498.81,"F",3,{"$f":"FETCHCOMMENT(E243)","v":"11-430254\n07-348804\n07-349504"},2,{"$f":"FETCHCOMMENT(G243)","v":"CSI/CJA A JOINT VENTURE\nALFARO COMMUNICATIONS CONSTRUCTION INC"},"7,11"]
["TRIUMPH GEO SYNTHETICS INC",33,509095.19,"F",4,{"$f":"FETCHCOMMENT(E244)","v":"12-0S1504\n07-351304\n07-356604\n08-1K4904"},4,{"$f":"FETCHCOMMENT(G244)","v":"POWELL CONSTRUCTORS INC\nMYERS & SONS CONSTRUCTION, LLC\nGRANITE CONSTRUCTION COMPANY"},"7,8,12"]
["TYRRELL RESOURCES",-4142,2887973.5,"F",12,{"$f":"FETCHCOMMENT(E245)","v":"02-3H6804\n02-3H82U4\n03-4H0704\n10-0G8304\n01-0E11U4\n03-1H9904\n02-0J6404\n02-4H0504\n03-1H6304\n01-0C55U4\n03-3H6104\n03-3H5604"},10,{"$f":"FETCHCOMMENT(G245)","v":"J.F. SHEA CONSTRUCTION INC\nHAT CREEK CONSTRUCTION MATERIALS INC\nDESILVA GATES CONSTRUCTION \nVIKING CONSTRUCTION COMPANY \nGRANITE CONSTRUCTION COMPANY\nA. TEICHERT & SON INC DBA TEICHERT CONSTRUCTION\nBALDWIN CONTRACTING COMPANY INC DBA KNIFE RIVER \nTULLIS\nO.C. JONES & SONS, INC.\nFLATIRON WEST INC."},"1,2,3,10"]
["VERIDICO GROUP INC",-4142,10380,"F",1,{"$f":"FETCHCOMMENT(E246)","v":"02-3H6504"},1,{"$f":"FETCHCOMMENT(G246)","v":"J.F. SHEA CONSTRUCTION"},2]
["WATER COMPONENTS & BUILDING",-4142,11743.54,"F",2,{"$f":"FETCHCOMMENT(E247)","v":"04-4J5404\n04-3Q7604"},1,{"$f":"FETCHCOMMENT(G247)","v":"GHILOTTI BROS, INC."},4]
["WEST COAST WATER & TRUCKING",43,2309400,"F",5,{"$f":"FETCHCOMMENT(E248)","v":"03-1H9904\n03-1H6304\n03-2J3204\n03-3H6104\n03-3H5604"},4,{"$f":"FETCHCOMMENT(G248)","v":"A. TEICHERT & SON INC DBA TEICHERT CONSTRUCTION\nO.C. JONES & SONS, INC.\nDESILVA GATES CONSTRUCTION LLC\nFLATIRON WEST INC."},3]
["WHITE CAP READY MIX INC",33,258757.5,"F",1,{"$f":"FETCHCOMMENT(E249)","v":"02-0J6404"},1,{"$f":"FETCHCOMMENT(G249)","v":"BALDWIN CONTRACTING COMPANY, INC. DBA KNIFE RIVER CONSTRUCTION"},2]
[null,{"$f":"COUNTIF(B30:B244, \"33\")","v":28}]
[null,{"$f":"COUNTIF(B30:B244, \"43\")","v":32}]
[null,{"$f":"COUNTIF(B30:B244, \"-4142\")","v":137}]
["Prime Name",null,"Notes","Number of Contracts","Contract #","Prime Name","Number of Contracts","Contract #","Prime Name","Number of Contracts","Contract #"]
["A. TEICHERT & SON INC DBA \nTEICHERT CONSTRUCTION",null,null,3,{"$f":"FETCHCOMMENT(D254)","v":"03-1H9904\n06-0X2604\n06-0X0604"},"DIRT DYNASTY INC",1,{"$f":"FETCHCOMMENT(G254)","v":"10-1G2504"},"ORTIZ ENTERPRISES, INC.",1,{"$f":"FETCHCOMMENT(J254)","v":"08-1G6704"}]
["ACCU CONSTRUCTION INC",null,null,1,{"$f":"FETCHCOMMENT(D255)","v":"08-1H3804"},"DISNEY CONSTRUCTION, INC.",1,{"$f":"FETCHCOMMENT(G255)","v":"04-2Q5704"},"PACIFIC INFRASTRUCTURE CONSTRUCTION LLC",1,{"$f":"FETCHCOMMENT(J255)","v":"10-1L2604"}]
["ALDRIDGE ELECTRIC, INC.",null,null,1,{"$f":"FETCHCOMMENT(D256)","v":"07-348804\n07-349504\n08-1J6804"},"DIVERSCAPE, INC. DBA DIVERSIFIED LANDSCAPE CO.",1,{"$f":"FETCHCOMMENT(G256)","v":"08-1E3404"},"PAPICH CONSTRUCTION COMPANY INC",1,{"$f":"FETCHCOMMENT(J256)","v":"09-368004"}]
["ALFARO COMMUNICATIONS CONSTRUCTION INC",null,{"$f":"FETCHCOMMENT(A257)","v":"LOST DBE CERTIFICATION 12/31/23"},3,{"$f":"FETCHCOMMENT(D257)","v":"07-338604\n08-496124\n08-1J6804"},"FBD VANGUARD CONSTRUCTION, INC.",2,{"$f":"FETCHCOMMENT(G257)","v":"04-2G7804\n04-0K1104"},"PETERSON-CHASE GENERAL ENGINEERING CONSTRUCTION INC.",2,{"$f":"FETCHCOMMENT(J257)","v":"08-1H9914\n08-1J8604"}]
["ALFARO COMMUNICATIONS CONSTRUCTION INC",null,{"$f":"FETCHCOMMENT(A258)","v":"LOST DBE CERTIFICATION 12/31/23"},2,{"$f":"FETCHCOMMENT(D258)","v":"07-348804\n07-349504"},"FEC FUTURE CONTRACTORS AND ENGINEERS, INC.",1,{"$f":"FETCHCOMMENT(G258)","v":"07-330304"},"POLO ENGINEERING INC",1,{"$f":"FETCHCOMMENT(J258)","v":"07-357004"}]
["AMERICAN CIVIL CONSTRUCTORS WEST COAST, LLC dba ACC WEST COAST",null,null,2,{"$f":"FETCHCOMMENT(D259)","v":"04-3W7504\n04-3W7604"},"FLATIRON WEST INC.",1,{"$f":"FETCHCOMMENT(G259)","v":"03-3H5604"},"POWELL CONSGTRUCTORS INC",2,{"$f":"FETCHCOMMENT(J259)","v":"12-0S1504\n07-351304"}]
["ANVIL BUILDERS INC",null,null,1,{"$f":"FETCHCOMMENT(D260)","v":"04-0Q1804"},"GBA ENGINEERING",1,{"$f":"FETCHCOMMENT(G260)","v":"08-1H9924"},"Q & D CONSTRUCTION LLC",1,{"$f":"FETCHCOMMENT(J260)","v":"03-2J9104"}]
["AUTOBAHN CONSTRUCTION INC.",null,null,1,{"$f":"FETCHCOMMENT(D261)","v":"12-0S3104"},"GHILOTTI BROS INC",4,{"$f":"FETCHCOMMENT(G261)","v":"04-0K7804\n04-4J5404\n04-3Q7604\n04-2Q7604"},"R.J. NOBLE COMPANY",1,{"$f":"FETCHCOMMENT(J261)","v":"07-321604"}]
["BALDWIN CONTRACTING COMPANY INC DBA KINFE RIVER CONSTRUCTION",null,null,1,{"$f":"FETCHCOMMENT(D262)","v":"02-0J6404"},"G R SUNDBERG, INC.",1,{"$f":"FETCHCOMMENT(G262)","v":"01-0K6404"},"ROCKY MOUNTAIN CONSTRUCTION",1,{"$f":"FETCHCOMMENT(J262)","v":"02-4H0004"}]
["BAY CITIES PAVING & GRADING, INC.",null,null,4,{"$f":"FETCHCOMMENT(D263)","v":"04-1Q5814\n10-1E3004\n06-0X3004\n04-2Q7004"},"GRANITE CONSTRUCTION COMPANY",9,{"$f":"FETCHCOMMENT(G263)","v":"01-0J6314\n01-0E11U4\n05-1H3104\n01-0C55U4\n01-0H1504\n01-0H1704\n04-2Q7604\n06-0W8204\n08-1K4904"},"SB GENERAL ENGINEERING, INC.",1,{"$f":"FETCHCOMMENT(J263)","v":"11-430304"}]
["BEADOR CONSTRUCTION COMPANY, INC.",null,null,2,{"$f":"FETCHCOMMENT(D264)","v":"07-322504\n08-1E1404"},"GRIFFITH COMPANY",5,{"$f":"FETCHCOMMENT(G264)","v":"06-0U4304\n11-430394\n07-347504\n06-0X3804\n04-4K1404"},"SECURITY PAVING COMPANY, INC.",2,{"$f":"FETCHCOMMENT(J264)","v":"06-0X3304\n12-0N8904"}]
["BORTOLUSSI & WATKIN, INC.",null,null,1,{"$f":"FETCHCOMMENT(D265)","v":"06-0W9704"},"HAT CREEK CONSTRUCTION & MATERIALS, INC.",1,{"$f":"FETCHCOMMENT(G265)","v":"02-3H82U4"},"SELECT ELECTRIC",1,{"$f":"FETCHCOMMENT(J265)","v":"07-346204"}]
["C. A. RASMUSSEN, INC.",null,null,1,{"$f":"FETCHCOMMENT(D266)","v":"07-322904"},"HOSELEY CORPORATION",2,{"$f":"FETCHCOMMENT(G266)","v":"04-0Q6104\n04-0Q4404"},"SEMA CONSTRUCTION, INC.",1,{"$f":"FETCHCOMMENT(J266)","v":"08-1C5704"}]
["CAL VALLEY CONSTRUCTION INC",null,null,1,{"$f":"FETCHCOMMENT(D267)","v":"06-1A4604"},"J.F. SHEA CONSTRUCTION, INC.",2,{"$f":"FETCHCOMMENT(G267)","v":"02-3H6504\n02-3H6804"},"ST. FRANCIS ELECTRIC LLC",3,{"$f":"FETCHCOMMENT(J267)","v":"04-0K1304\n03-4H8904\n04-0Q0704"}]
["CALIFORNIA HIGHWAY CONSTRUCTION GROUP, INC.",null,null,1,{"$f":"FETCHCOMMENT(D268)","v":"04-4J4604"},"JOHN SEMSEN LANDSCAPING CO., INC.",1,{"$f":"FETCHCOMMENT(G268)","v":"04-4G21A4"},"STIMPEL-WIEBELHAUS ASSOCIATES,  INC.",1,{"$f":"FETCHCOMMENT(J268)","v":"02-4H6604"}]
["CALPROMAX ENGINEERING, INC.",null,null,1,{"$f":"FETCHCOMMENT(D269)","v":"07-320804"},"MARINA LANDSCAPE INC.",1,{"$f":"FETCHCOMMENT(G269)","v":"10-1H6504"},"SULLY-MILLER CONTRACTING COMPANY",1,{"$f":"FETCHCOMMENT(J269)","v":"08-1G6404"}]
["CHUMO CONSTRUCTION INC.",null,null,1,{"$f":"FETCHCOMMENT(D270)","v":"12-0R6804"},"MARTIN MARIETTA SAN DIEGO AGGREGATES LLC DBA ATP GENERAL ENGINEERING CONTRACTORS",1,{"$f":"FETCHCOMMENT(G270)","v":"08-1J2604"},"TSI ENGINEERING, INC.",1,{"$f":"FETCHCOMMENT(J270)","v":"10-1C2704"}]
["CORAL CONSTRUCTION COMPANY",null,null,2,{"$f":"FETCHCOMMENT(D271)","v":"10-1L6304\n06-1E2204"},"MCCULLOUGH CONSTRUCTION",1,{"$f":"FETCHCOMMENT(G271)","v":"01-434844"},"TULLIS, INC.",2,{"$f":"FETCHCOMMENT(J271)","v":"02-4H0204\n02-4H0504"}]
["CSI/CJA A JOINT VENTURE",null,null,1,null,"MERCER FRASER COMPANY",1,null,"VIKING CONSTRUCTION COMPANY, INC.",1]
["DANNY C. HUBBS CONSTRUCTION, INC. DBA D.C. HUBBS CONSTRUCTION",null,null,1,null,"MYERS & SONS CONSTRUCTION",1,null,"WALSH CONSTRUCTION COMPANY II, LLC",1]
["DESILVA GATES CONSTRUCTION LLC",null,null,3,{"$f":"FETCHCOMMENT(D274)","v":"03-4H0704\n03-4H6004\n03-3H6104"},"O.C. JONES & SONS, INC.",5,{"$f":"FETCHCOMMENT(G274)","v":"03-1H6304\n03-2J3204\n04-1J9604\n04-0P1204\n04-1Q4604"},null,null,{"$f":"FETCHCOMMENT(J274)","v":"11-2T3434"}]
[]
["To see names of prime contractors/contract numbers, place your cursor on comment tab (red triangle)."]
["Caltrans DBE Reports: http://www.dot.ca.gov/hq/bep/reports.htm"]